Cogmind - Beta 10.2 @@@ ROGUE MODE // 2021.03.27 @ 03:17:48 Player: aperiodic Result: Establishing Free Derelict Territories! Performance ------------- Evolutions (9) 4500 Regions Visited (41) 8200 Robots Destroyed (459) 2295 Value Destroyed (16584) 16584 Prototype IDs (167) 3340 Alien Tech Used (13) 2600 Bonus (30912) 30912 TOTAL SCORE: 68431 Bonus ------- High Alert Combat Kills 1393 Follower Combat Kills 1196 Network Hubs Disabled 400 Aligned with FarCom 300 Met Data Miner 300 Met Zhirov 300 Met Warlord at Base 500 MAIN.C Attacked Warlord 500 A7 Reached Mainframe 300 Met Warlord at Research 2000 Destroyed MAIN.C Guards 500 Met MAIN.C 5000 Hacked MAIN.C 300 Destroyed MAIN.C Shell 5000 Destroyed MAIN.C 10000 Met Warlord at Command 2000 Win 3000 Friendly Fire -2077 Cogmind --------- Core Integrity 1592/1600 Matter 300/300 Energy 851/1130 System Corruption 0% Temperature Cool (0) Movement Flying (14) Location Free Derelict Territories Parts ------- > --- POWER (1) -------- Mini Fusion Reactor > --- PROPULSION (3) --- Experimental Q-thruster Experimental Q-thruster Experimental Q-thruster > --- UTILITY (18) ----- Medium Storage Unit Medium Storage Unit Experimental Energy Well Dimensional Manipulator Dimensional Manipulator Experimental Terrain Scan Processor Experimental Melee Analysis Suite Experimental Armor Integrity Analyzer Femtoactuators Experimental Actuator Array Advanced Reaction Control System Experimental Phase Shifter Experimental Utility Shielding Powered Armor EM Dispersion Field Experimental Force Field System Mapper Deep Network Scanner > --- WEAPON (4) ------- Plasma Lance Plasma Lance Plasma Lance Plasma Lance > --- INVENTORY (14) --- Experimental Coolant Injector Experimental Sensor Array Experimental Terrain Scanner Powered Armor Antimissile System Transdimensional Reconstructor Transdimensional Reconstructor Transdimensional Reconstructor Integrity Redistributor Integrity Redistributor Integrity Redistributor Enhanced Nova Cannon Advanced Remote Datajack Plasma Lance Peak State ------------ > --- POWER ------------ Mini Fusion Reactor > --- PROPULSION ------- Experimental Q-thruster Experimental Q-thruster Experimental Q-thruster > --- UTILITY ---------- Experimental Coolant Injector Medium Storage Unit Medium Storage Unit Experimental Energy Well Dimensional Manipulator Dimensional Manipulator Experimental Terrain Scan Processor Experimental Melee Analysis Suite Experimental Armor Integrity Analyzer Femtoactuators Experimental Actuator Array Advanced Reaction Control System Experimental Phase Shifter Experimental Utility Shielding Powered Armor Experimental Force Field System Mapper Deep Network Scanner > --- WEAPON ----------- Plasma Lance Plasma Lance Plasma Lance Plasma Lance > --- INVENTORY -------- Experimental Sensor Array Experimental Terrain Scanner Powered Armor EM Dispersion Field Antimissile System Transdimensional Reconstructor Transdimensional Reconstructor Transdimensional Reconstructor Integrity Redistributor Integrity Redistributor Integrity Redistributor Enhanced Nova Cannon Advanced Remote Datajack Plasma Lance [Rating: 226] Favorites ----------- Power Mini Fusion Reactor Engine Heavy Ion Engine Power Core Micro Fission Core Reactor Mini Fusion Reactor Propulsion Cooled Impulse Thruster Treads Light Treads Leg Advanced Myomer Leg Wheel Wheel Flight Unit Cooled Impulse Thruster Utility Experimental Signal Interpreter Device Experimental Sensor Array Storage Large Storage Unit Processor Experimental Signal Interpreter Hackware System Mapper Protection Experimental Utility Shielding Artifact Phase Redirector Weapon Plasma Lance Energy Gun Beam Rifle Energy Cannon Cooled Plasma Cannon Ballistic Gun Improved Assault Rifle Launcher Mini Smartbomb Launcher Special Weapon Improved Remote Datajack Impact Weapon Great Maul Slashing Weapon Plasma Sword Piercing Weapon Plasma Lance Special Melee Weapon Datajack Build | -11 -10 -10 -9 -9 -9 -8 -8 -8 -7 -7 -7 -7 -7 -7 -6 -6 -6 -6 -6 -6 -6 -6 -5 -5 -5 -5 -5 -4 -4 -4 -4 -4 -3 -3 -3 -3 -2 -2 -2 -1 -1 ------- Run | Scr Mat Min Mat Min Exi Min Mat Sto Fac Was Fac Low Low Dat Pro Fac Was Fac Ext Cet Arc Hub Fac Was Fac Upp War Pro Fac Upp Upp Zhi Pro Res Arm Lab Res Qua Sec Acc Com Slots Evolved 18 | . . . 2 . . . 2 . 2 . . . . . . 2 . . . . . . 2 . . . . . 2 . . . . 2 . . 2 . . 2 . Power . | . . . . . . . . . . . . . . . . . . . . . . . . . . . . . . . . . . . . . . . . . . Propulsion 1 | . . . . . . . . . . . . . . . . 1 . . . . . . . . . . . . . . . . . . . . . . . . . Utility 16 | . . . 2 . . . 2 . 2 . . . . . . 1 . . . . . . 2 . . . . . 2 . . . . 2 . . 2 . . 1 . Weapon 1 | . . . . . . . . . . . . . . . . . . . . . . . . . . . . . . . . . . . . . . . . 1 . Parts Attached 654 | 6 12 11 49 3 27 2 19 38 37 4 11 1 1 5 6 27 1 16 17 5 . 8 30 . 28 . 3 . 29 1 5 5 8 34 27 . 28 18 73 40 19 Power 19 | 1 . 2 1 . 1 . . 2 2 . 1 . . . . . . 1 . . . . 3 . 1 . . . 1 . . . . 2 . . . . 1 . . Engine 7 | 1 . 1 1 . 1 . . 2 1 . . . . . . . . . . . . . . . . . . . . . . . . . . . . . . . . Core 7 | . . 1 . . . . . . 1 . 1 . . . . . . 1 . . . . 3 . . . . . . . . . . . . . . . . . . Reactor 5 | . . . . . . . . . . . . . . . . . . . . . . . . . 1 . . . 1 . . . . 2 . . . . 1 . . Propulsion 70 | 2 3 . 24 . 10 . . . 3 . 3 . . . 1 5 . . . . . . 4 . 1 . 2 . 3 . . 1 . 3 2 . 2 . . 1 . Treads 20 | 2 1 . 13 . 4 . . . . . . . . . . . . . . . . . . . . . . . . . . . . . . . . . . . . Leg 6 | . . . . . 6 . . . . . . . . . . . . . . . . . . . . . . . . . . . . . . . . . . . . Wheel 12 | . 2 . 10 . . . . . . . . . . . . . . . . . . . . . . . . . . . . . . . . . . . . . . Hover . | . . . . . . . . . . . . . . . . . . . . . . . . . . . . . . . . . . . . . . . . . . Flight 32 | . . . 1 . . . . . 3 . 3 . . . 1 5 . . . . . . 4 . 1 . 2 . 3 . . 1 . 3 2 . 2 . . 1 . Utility 287 | 1 3 3 9 1 10 1 7 13 20 2 5 . . 4 . 4 1 12 15 2 . . 5 . 4 . . . 11 1 1 4 4 15 11 . 20 18 54 15 11 Device 183 | . . 1 3 1 3 1 3 7 11 2 3 . . . . 1 1 10 9 . . . 3 . 1 . . . 5 1 . . 2 9 9 . 17 11 48 13 8 Storage 16 | 1 1 . 1 . 4 . . . . . . . . . . . . . . . . . . . 1 . . . 1 . . . . 2 1 . 1 1 . 2 . Processor 9 | . . . . . 1 . . . 2 . 1 . . . . . . 1 . . . . . . . . . . 1 . . . . . 1 . . . 1 . 1 Hackware 18 | . . . . . . . . 1 7 . 1 . . 4 . 2 . . . . . . 1 . 1 . . . 1 . . . . . . . . . . . . Protection 59 | . 2 2 5 . 2 . 4 5 . . . . . . . 1 . 1 6 2 . . 1 . 1 . . . 3 . 1 4 2 4 . . 2 4 5 . 2 Artifact 2 | . . . . . . . . . . . . . . . . . . . . . . . . . . . . . . . . . . . . . . 2 . . . Weapon 278 | 2 6 6 15 2 6 1 12 23 12 2 2 1 1 1 5 18 . 3 2 3 . 8 18 . 22 . 1 . 14 . 4 . 4 14 14 . 6 . 18 24 8 Energy Gun 12 | 2 3 1 6 . . . . . . . . . . . . . . . . . . . . . . . . . . . . . . . . . . . . . . Energy Cannon 80 | . . . . . . . . . 5 2 1 . 1 . 2 5 . 1 1 1 . 4 7 . 7 . 1 . 4 . 1 . 1 5 6 . 2 . 9 11 3 Ballistic Gun 45 | . 2 2 5 1 3 . 6 11 . . . . . . . . . . . 1 . 4 4 . 4 . . . 2 . . . . . . . . . . . . Ballistic Cannon . | . . . . . . . . . . . . . . . . . . . . . . . . . . . . . . . . . . . . . . . . . . Launcher 41 | . . 2 3 1 1 1 6 9 . . . . . . 2 4 . 2 1 1 . . 3 . . . . . . . 1 . 1 1 1 . 1 . . . . Special Weapon 8 | . 1 1 1 . 2 . . . . . . . . . . . . . . . . . . . . . . . 2 . . . . . . . . . . . 1 Impact Weapon 4 | . . . . . . . . 3 1 . . . . . . . . . . . . . . . . . . . . . . . . . . . . . . . . Slashing Weapon 17 | . . . . . . . . . . . . . . . . . . . . . . . 4 . 11 . . . 2 . . . . . . . . . . . . Piercing Weapon 66 | . . . . . . . . . 5 . 1 . . 1 . 7 . . . . . . . . . . . . 4 . 2 . 2 8 7 . 3 . 9 13 4 Special Melee Weapon 5 | . . . . . . . . . 1 . . 1 . . 1 2 . . . . . . . . . . . . . . . . . . . . . . . . . Unidentified Prototypes 31 | . . 1 2 . 6 . . 1 . . . . . 4 . . . . . 2 . . 1 . . . 1 . . . . 2 1 . 3 . . 2 4 . 1 Parts Lost 31 | . 4 . 7 . 8 . 2 1 4 . 1 . . . 1 2 . . . . . . 1 . . . . . . . . . . . . . . . . . . Power . | . . . . . . . . . . . . . . . . . . . . . . . . . . . . . . . . . . . . . . . . . . Propulsion 5 | . 1 . 1 . 3 . . . . . . . . . . . . . . . . . . . . . . . . . . . . . . . . . . . . Utility 9 | . . . 2 . 2 . 1 . 3 . 1 . . . . . . . . . . . . . . . . . . . . . . . . . . . . . . Weapon 17 | . 3 . 4 . 3 . 1 1 1 . . . . . 1 2 . . . . . . 1 . . . . . . . . . . . . . . . . . . Highest Loss Streak 6 | . 3 . 4 . 6 . 1 1 2 . 1 . . . 1 1 . . . . . . 1 . . . . . . . . . . . . . . . . . . Average Slot Usage (%) 97 | . 91 100 99 100 91 100 98 98 86 96 90 99 100 98 98 95 100 99 98 100 100 100 94 100 100 . 100 100 99 100 100 99 97 93 99 100 99 99 99 99 99 Engine 2 | . 14 13 11 11 11 11 9 9 . . . . . . . . . . . . . . . . . . . . . . . . . . . . . . . . . Core 2 | . . . . . . . . . 6 7 7 7 7 7 7 6 6 5 6 6 6 6 4 5 4 . . . . . . . . . . . . . . . . Reactor 1 | . . . . . . . . . . . . . . . . . . . . . . . . . . . 5 5 4 5 5 5 5 3 4 4 4 4 3 3 3 Treads 2 | . 22 . 15 22 13 . . . . . . . . . . . . . . . . . . . . . . . . . . . . . . . . . . . . Leg 2 | . . . . . 8 22 18 18 . . . . . . . . . . . . . . . . . . . . . . . . . . . . . . . . . Flight 11 | . . . . . . . . . 14 15 15 15 15 15 15 19 20 20 20 20 20 20 16 17 17 . 17 17 15 15 15 15 15 12 13 13 12 12 12 11 11 Device 12 | . . . 10 11 6 11 16 11 8 7 6 7 7 7 7 7 6 7 6 6 6 6 6 11 11 . 11 11 15 17 18 15 15 17 17 18 26 25 28 30 30 Storage 7 | . 16 14 21 22 18 22 18 18 . . . . . . . . . . . . . . . . . . 5 5 5 5 5 5 5 4 6 9 9 12 12 11 11 Processor 8 | . . . . . 4 11 9 9 7 7 7 7 7 7 7 6 6 8 13 13 13 13 11 11 10 . 5 5 6 10 10 10 10 9 12 13 12 12 12 11 11 Hackware 20 | . . . . . . . . 1 37 46 45 46 46 44 46 40 40 35 26 26 26 26 29 29 29 . 29 29 29 26 26 26 25 22 22 22 14 12 8 7 7 Protection 7 | . 6 14 11 11 6 . 9 12 . . . . . . . 1 6 7 11 13 13 13 10 11 10 . 11 11 9 8 7 9 9 8 6 4 6 7 7 7 6 Energy Gun 1 | . 19 14 12 11 2 . . . . . . . . . . . . . . . . . . . . . . . . . . . . . . . . . . . . Energy Cannon 1 | . . . . . . . . . . 3 . . 4 2 . 1 6 6 4 2 . 1 3 . . . 4 5 1 . . . 2 . . . . . . . . Ballistic Gun 3 | . 8 12 8 10 15 14 12 16 . . . . . . . . . . . 2 6 4 1 . . . . . . . . . . . . . . . . . . Launcher 2 | . . . . . 2 7 5 . . . . . . . 3 . 6 5 7 6 6 6 3 5 5 . 5 5 . . 2 . . . . . . . . . . Piercing Weapon 4 | . . . . . . . . . 5 7 6 7 2 5 2 4 . . . . . . . . . . . . 5 10 7 10 8 12 12 13 12 12 11 14 14 Naked Turns . | . . . . . . . . . . . . . . . . . . . . . . . . . . . . . . . . . . . . . . . . . . Heaviest Build 113 | 9 30 32 55 58 113 50 65 68 16 16 13 9 14 14 14 20 20 24 33 24 21 23 26 22 31 28 33 33 46 46 46 46 51 53 51 49 73 76 75 76 74 Greatest Support 77 | 40 40 20 40 40 60 60 60 72 12 12 14 14 14 14 14 24 24 24 24 24 24 24 24 22 39 39 42 39 50 50 50 52 52 67 76 58 77 77 77 77 74 Greatest Overweight (x) 16 | . 6 1 5 1 4 . 1 1 1 1 . . . . . . . . 7 . . . 1 . 1 . . . . . . . . 1 . 16 . . . 1 . Average Overweight (x) . | . . 1 1 1 1 . . . . . . . . . . . . . . . . . . . . . . . . . . . . . . 15 . . . . . Largest Inventory Capacity 30 | 6 12 10 16 16 30 16 16 16 16 4 4 4 4 4 4 4 4 4 4 4 4 4 4 4 8 8 8 8 10 10 10 10 10 10 14 14 14 14 16 16 14 Average Capacity 9 | 5 8 10 15 16 20 16 16 16 4 4 4 4 4 4 4 4 4 4 4 4 4 4 4 4 4 8 8 8 8 10 10 10 10 10 11 14 14 14 14 14 14 Most Carried 25 | 4 10 10 16 16 25 16 16 16 15 4 4 4 4 4 4 4 4 4 4 4 4 4 4 4 5 4 6 7 10 10 10 10 10 10 14 14 14 14 16 15 14 Average Carried 8 | 1 7 9 13 15 11 16 15 15 4 3 3 4 4 4 3 3 4 3 3 3 3 4 3 4 3 4 4 6 7 10 10 10 9 9 11 14 12 13 13 13 13 Final Capacity 16 | 6 10 10 16 16 16 16 16 16 4 4 4 4 4 4 4 4 4 4 4 4 4 4 4 4 8 8 8 8 10 10 10 10 10 10 14 14 14 14 16 14 14 Final Carried 16 | 3 10 10 16 16 16 16 16 16 4 4 4 4 4 4 4 4 4 4 4 4 4 4 4 4 4 4 6 7 10 10 10 10 9 10 14 14 14 14 16 14 14 Class Distribution -------------------- 51% | Wizard-Sprinter 11% | Mutant 11% | Machinist-Sprinter 9% | Wizard-Mutant 8% | Scavenger-Mutant 4% | Hauler-Mutant 3% | Hacker-Sprinter Dominant Class ---------------- Mutant | -10/Materials Mutant | -10/Mines Mutant | -9/Materials Mutant | -9/Mines Hauler-Mutant | -9/Exiles Scavenger-Mutant | -8/Mines Scavenger-Mutant | -8/Materials Scavenger-Mutant | -8/Storage Hacker-Sprinter | -7/Factory Wizard-Mutant | -7/Waste Wizard-Sprinter | -7/Factory Wizard-Sprinter | -7/Lower Caves Wizard-Sprinter | -7/Lower Caves Wizard-Sprinter | -7/Data Miner Wizard-Sprinter | -6/Proximity Caves Wizard-Sprinter | -6/Factory Wizard-Sprinter | -6/Waste Wizard-Sprinter | -6/Factory Wizard-Sprinter | -6/Extension Wizard-Sprinter | -6/Cetus Wizard-Sprinter | -6/Archives Wizard-Sprinter | -6/Hub_04(d) Wizard-Sprinter | -5/Factory Wizard-Sprinter | -5/Waste Wizard-Sprinter | -5/Factory Wizard-Sprinter | -5/Upper Caves Wizard-Sprinter | -5/Warlord Wizard-Sprinter | -4/Proximity Caves Wizard-Sprinter | -4/Factory Wizard-Sprinter | -4/Upper Caves Wizard-Sprinter | -4/Upper Caves Wizard-Sprinter | -4/Zhirov Wizard-Sprinter | -3/Proximity Caves Wizard-Sprinter | -3/Research Wizard-Sprinter | -3/Armory Wizard-Mutant | -3/Lab Machinist-Sprinter | -2/Research Machinist-Sprinter | -2/Quarantine Machinist-Sprinter | -2/Section 7 Machinist-Sprinter | -1/Access Machinist-Sprinter | -1/Command Resources | -11 -10 -10 -9 -9 -9 -8 -8 -8 -7 -7 -7 -7 -7 -7 -6 -6 -6 -6 -6 -6 -6 -6 -5 -5 -5 -5 -5 -4 -4 -4 -4 -4 -3 -3 -3 -3 -2 -2 -2 -1 -1 ----------- Run | Scr Mat Min Mat Min Exi Min Mat Sto Fac Was Fac Low Low Dat Pro Fac Was Fac Ext Cet Arc Hub Fac Was Fac Upp War Pro Fac Upp Upp Zhi Pro Res Arm Lab Res Qua Sec Acc Com Matter Collected 14655 | 237 199 153 697 67 591 104 869 978 262 142 70 24 36 . 230 250 . 328 537 71 36 263 252 . 462 . 10 100 1918 69 67 168 160 827 206 . 1389 288 1965 410 220 Remotely . | . . . . . . . . . . . . . . . . . . . . . . . . . . . . . . . . . . . . . . . . . . Salvage Created 22733 | 100 614 221 1268 81 423 83 1761 2931 268 . 128 . 50 27 233 465 . 259 796 117 83 422 243 . 644 . . 121 2348 52 67 351 203 1248 96 . 666 106 2611 1955 1692 Parts 1099 | 8 40 20 74 5 51 16 97 137 14 . 10 . . 5 14 33 . 10 42 6 5 28 12 . 26 . . 14 81 3 . 3 11 74 . . 24 5 98 84 49 Haulers Intercepted 19 | . 1 . 3 . . . 4 6 1 . . . . . . . . . . . . . . . . . . . 2 . . . . . . . 2 . . . . Recyclers Shooed 18 | . . . 2 . . . 4 2 . . . . . . . . . . 3 . . 1 . . . . . . 4 . . . . 1 . . . . 1 . . Parts Field Recycled . | . . . . . . . . . . . . . . . . . . . . . . . . . . . . . . . . . . . . . . . . . . Retrieved Matter . | . . . . . . . . . . . . . . . . . . . . . . . . . . . . . . . . . . . . . . . . . . Parts Self-Destructed 22 | . . . . . . . . . . . . . 3 . . . . . . . . . . . . . . 8 . 3 . 2 6 . . . . . . . . Prevented 17 | . . . . . . . . . . . . . . . 14 . . . . . . . . . . . 3 . . . . . . . . . . . . . . Kills | -11 -10 -10 -9 -9 -9 -8 -8 -8 -7 -7 -7 -7 -7 -7 -6 -6 -6 -6 -6 -6 -6 -6 -5 -5 -5 -5 -5 -4 -4 -4 -4 -4 -3 -3 -3 -3 -2 -2 -2 -1 -1 ------- Run | Scr Mat Min Mat Min Exi Min Mat Sto Fac Was Fac Low Low Dat Pro Fac Was Fac Ext Cet Arc Hub Fac Was Fac Upp War Pro Fac Upp Upp Zhi Pro Res Arm Lab Res Qua Sec Acc Com Combat Hostiles Destroyed 260 | . 9 8 26 3 6 7 26 41 1 . 1 . 1 . 4 4 . 3 9 2 1 7 2 . 2 . . 9 9 1 . . 5 11 1 . 5 1 25 19 11 Melee 77 | . . . . . . . . . 1 . 1 . . . . . . . . . . . . . . . . . 4 1 . . 2 6 1 . 5 1 25 19 11 Guns 73 | . 9 5 20 . 1 4 6 18 . . . . . . . . . . . . 1 4 2 . 2 . . . 1 . . . . . . . . . . . . Cannons 10 | . . . 1 . . . . . . . . . . . . 1 . 1 3 2 . . . . . . . 2 . . . . . . . . . . . . . AOE 93 | . . 3 5 3 5 3 19 19 . . . . . . 3 3 . 2 6 . . 3 . . . . . 7 4 . . . 3 5 . . . . . . . Classes Destroyed 21 | 2 6 . 2 . 3 . 3 1 1 . . . . . 1 . . . 1 . . . . . . . . . . . . . . . . . . . 1 . . Worker 40 | . 3 . . . . 1 3 5 2 . 1 . . . . 2 . 1 4 . . . . . 5 . . . 8 . . . . 3 . . . . . 2 . Builder 11 | . . . 1 . . . 2 2 . . . . . . . . . . 4 . . 1 . . . . . . 1 . . . . . . . . . . . . Tunneler 14 | 1 . 1 . 1 . . . . . . . . . . . . . . 1 . . . . . . . . . 4 . . . . 3 . . 2 . . 1 . Hauler 19 | . 1 . 3 . . . 4 6 1 . . . . . . . . . . . . . . . . . . . 2 . . . . . . . 2 . . . . Recycler 38 | 1 2 . 1 . . . 1 5 1 . 1 . . . . 1 . 1 1 . . . . . 2 . . . 10 . . . . 3 . . . . 4 3 1 Mechanic 2 | . . . . . . . . 2 . . . . . . . . . . . . . . . . . . . . . . . . . . . . . . . . . Operator 15 | . 2 . 1 . . . 1 3 . . . . . . . 1 . . . . . 3 1 . . . . 1 1 . . . . 1 . . . . . . . Drone 1 | . . . . . . . . . . . . . . . . . . . 1 . . . . . . . . . . . . . . . . . . . . . . Turret 1 | . . . . . 1 . . . . . . . . . . . . . . . . . . . . . . . . . . . . . . . . . . . . Watcher 51 | . 2 . 4 . . . 4 2 2 . . . . . . 5 . 2 3 1 . 4 2 . 2 . . . 3 . . . . 5 . . . 1 4 5 . Swarmer 64 | . 3 3 6 . . 7 . 7 . . . . . . 2 3 . 3 . 1 . 3 . . . . . 9 4 . . . 3 5 . . 1 . . 4 . Grunt 80 | . 6 5 14 3 . . 14 22 . . . . . . . . . . 5 1 . 2 . . . . . . 1 . . . 1 . . . . . 4 2 . Brawler 1 | . . . . . . . 1 . . . . . . . . . . . . . . . . . . . . . . . . . . . . . . . . . . Duelist 3 | . . . . . . . 1 1 . . . . . . . . . . . . . . . . . . . . . . . . . . . . . . . 1 . Sentry 55 | . . . 6 . . . 9 10 . . . . . . 1 . . . 3 . 1 2 2 . 2 . . . 1 . . . . 2 1 . 2 . 7 5 1 Hunter 3 | . . . . . . . 1 1 . . . . . . . . . . . . . . . . . . . . . . . . . . . . 1 . . . . Programmer 34 | . . . . . . . . . 1 . 1 . . . . 1 . . . . . . . . . . . . 3 1 . . 1 4 . . . 1 10 7 4 Behemoth 4 | . . . . . . . . . . . . . . . 1 . . . 1 . . . . . . . . . . . . . . . . . 1 . . . 1 S7 Guard 2 | . . . . . . . . . . . . . . . . . . . . . . . . . . . . . . . . . . . . . . . 2 . . M Guard 2 | . . . . . . . . . . . . . . . . . . . . . . . . . . . . . . . . . . . . . . . . . 2 Combat Programmer 2 | . . . . . . . . . . . . . . . . . . . . . . . . . . . . . . . . . . . . . . . . . 2 Executioner 2 | . . . . . . . . . . . . . . . . . . . . . . . . . . . . . . . . . . . . . . . 2 . . Zionite 7 | . . . . . 7 . . . . . . . . . . . . . . . . . . . . . . . . . . . . . . . . . . . . Assembled 5 | . . . . . 5 . . . . . . . . . . . . . . . . . . . . . . . . . . . . . . . . . . . . Thug 2 | . . . . . . . . . . . . . . . . . . . 2 . . . . . . . . . . . . . . . . . . . . . . Butcher 1 | . . . . . . . . . . . . . 1 . . . . . . . . . . . . . . . . . . . . . . . . . . . . Guerrilla 1 | . . . . . . . . . . . . . . . . . . . 1 . . . . . . . . . . . . . . . . . . . . . . Best Kill Streak 14 | 2 3 4 4 3 5 4 9 14 1 . 1 . 1 1 2 5 . 3 7 2 1 4 1 . 3 . . 5 4 1 . . 3 5 1 . 1 1 8 3 3 Combat Bots Only 8 | . 3 3 4 3 5 4 7 6 1 . 1 . 1 . 2 3 . 3 2 2 1 4 1 . 1 . . 5 4 1 . . 3 5 1 . 1 1 8 3 3 Max Kills in Single Turn 5 | 1 2 3 2 1 2 2 3 3 1 . 1 . 1 1 1 2 . 2 4 1 1 2 1 . 1 . . 4 5 1 . . 3 3 1 . 1 1 1 1 1 Gunslinging . | . . . . . . . . . . . . . . . . . . . . . . . . . . . . . . . . . . . . . . . . . . Exploded 4 | . . 2 2 1 2 2 2 3 . . . . . . 1 2 . 2 1 . . 1 . . . . . 3 4 . . . 3 3 . . . . . . . Melee 1 | . . . . . . . . . 1 . 1 . . . . . . . . . . . . . . . . . 1 1 . . 1 1 1 . 1 1 1 1 1 Uniques/NPCs Destroyed 6 | . . . . . 4 . . . . . . . . 1 . . . . . . . . . . . . . . . . . . . . . . . . . . 1 8R-AWN (-9/Exiles) EX-HEX (-9/Exiles) EX-BIN (-9/Exiles) EX-DEC (-9/Exiles) Data Miner (-7/Data Miner) MAIN.C Shell (-1/Command) Combat | -11 -10 -10 -9 -9 -9 -8 -8 -8 -7 -7 -7 -7 -7 -7 -6 -6 -6 -6 -6 -6 -6 -6 -5 -5 -5 -5 -5 -4 -4 -4 -4 -4 -3 -3 -3 -3 -2 -2 -2 -1 -1 -------- Run | Scr Mat Min Mat Min Exi Min Mat Sto Fac Was Fac Low Low Dat Pro Fac Was Fac Ext Cet Arc Hub Fac Was Fac Upp War Pro Fac Upp Upp Zhi Pro Res Arm Lab Res Qua Sec Acc Com Damage Taken 9116 | . 628 139 1113 156 1117 112 645 999 214 . 59 18 . 46 109 218 . 70 213 116 32 189 321 . 259 . 21 85 254 172 212 . 377 588 . . 45 99 191 54 245 Core 1622 | . 128 21 148 23 90 31 93 192 119 . 16 18 . . 22 78 . 7 62 33 12 6 24 . 97 . . 52 61 21 16 . 68 112 . . . 25 39 . 8 Absorbed by Shields 911 | . . . 183 . 81 . 15 . . . . . . . . . . . . 58 11 . . . . . . . . . . . . . . . 21 36 190 56 260 Core Remaining (%) 73 | 100 . 40 . . . 27 . 48 . . . . . . 75 . . . . . . 76 . . . . . 82 . . . . 85 . . 82 . . 95 . 99 Volleys Fired 1061 | 3 62 20 119 5 126 11 80 94 17 . 3 . 42 . 59 19 . 56 38 10 9 44 83 . 28 . 3 7 30 . 2 . 25 14 7 . 2 . 16 21 6 Largest 2 | 2 2 2 2 2 2 1 2 2 1 . 1 . 1 . 1 1 . 1 1 1 1 1 1 . 1 . 1 1 1 . 1 . 1 1 1 . 1 . 1 1 1 Hottest 120 | 80 120 100 120 79 46 33 53 40 30 . 30 . 30 . 36 90 . 90 80 46 35 80 35 . 35 . 35 80 40 . 35 . 80 80 35 . 120 . 120 120 120 Shots Fired 1374 | 6 124 31 228 6 163 11 120 147 17 . 3 . 42 . 58 19 . 54 38 10 9 44 83 . 28 . 3 7 30 . 2 . 25 14 7 . 2 . 16 21 6 Gun 796 | 6 122 22 220 2 145 8 82 111 . . . . . . . . . . . . 9 34 11 . 15 . . . 9 . . . . . . . . . . . . Cannon 390 | . . . . . . . . . 17 . 3 . 42 . 33 13 . 53 19 7 . 7 72 . 13 . 3 3 19 . 2 . 24 12 7 . 1 . 16 21 3 Launcher 162 | . . 2 7 4 7 3 38 36 . . . . . . 25 6 . 1 19 3 . 3 . . . . . 4 . . . . 1 2 . . 1 . . . . Special 26 | . 2 7 1 . 11 . . . . . . . . . . . . . . . . . . . . . . . 2 . . . . . . . . . . . 3 Kinetic 565 | . 45 11 84 1 145 8 82 111 . . . . . . . . . . . . 9 34 11 . 15 . . . 9 . . . . . . . . . . . . Thermal 642 | 6 79 18 137 1 11 . . . 17 . 3 . 42 . 33 13 . 53 19 7 . 7 72 . 13 . 3 3 19 . 2 . 24 12 7 . 1 . 16 21 3 Explosive 65 | . . 2 7 4 7 3 11 . . . . . . . . 1 . 1 18 . . 3 . . . . . 4 . . . . 1 2 . . 1 . . . . Electromagnetic 97 | . . . . . . . 27 36 . . . . . . 25 5 . . 1 3 . . . . . . . . . . . . . . . . . . . . . Robot Hit Streak 35 | 2 13 16 19 3 17 5 35 19 . . . . 5 . . 1 . 5 14 4 4 9 12 . 11 . . 8 9 . . . . 2 . . . . . . 2 Robot Miss Streak 7 | 1 7 2 7 3 7 2 2 4 . . . . 1 . . 2 . 2 1 1 1 2 1 . 1 . . . 1 . . . . . . . . . . . 1 Penetration Max 2 | . . . . . . . 2 . . . . . . . . . . . . . . 1 1 . 1 . . . . . . . . . . . . . . . . Secondary Targets . | . . . . . . . . . . . . . . . . . . . . . . . . . . . . . . . . . . . . . . . . . . Shots Hit Robots 1102 | 4 82 18 163 3 128 7 81 95 12 . 6 . 10 1 . 15 . 6 23 5 7 25 22 . 30 . . 6 60 5 1 10 11 41 1 . 16 2 83 46 77 Core Hits 686 | 3 30 15 69 5 43 8 62 87 4 . 3 . 1 1 8 14 . 9 43 7 3 26 5 . 13 . . 12 37 2 1 4 8 36 1 . 12 2 42 35 35 Critical Hits 64 | . . . . . 8 . 15 . 1 . . . . . . 1 . . . . 2 9 4 . 4 . . . 4 . . 1 . 5 . . . . 6 2 2 Critical Kills 25 | . . . . . 1 . 4 . . . . . . . . 1 . . . . 1 4 2 . 2 . . . 3 . . . . 2 . . . . 3 1 1 Critical Parts Destroyed 33 | . . . . . 5 . 11 . 1 . . . . . . . . . . . . 4 2 . 1 . . . 1 . . 1 . 3 . . . . 3 1 . Melee Attacks 937 | . . . . . . . . 6 50 . 21 . 3 7 1 42 . . . . . . 20 . 52 . 2 . 126 6 3 10 17 103 21 . 51 10 156 129 101 Impact 22 | . . . . . . . . 6 16 . . . . . . . . . . . . . . . . . . . . . . . . . . . . . . . . Slashing 114 | . . . . . . . . . . . . . . . . . . . . . . . 20 . 52 . 2 . 40 . . . . . . . . . . . . Piercing 799 | . . . . . . . . . 33 . 21 . 3 7 1 41 . . . . . . . . . . . . 86 6 3 10 17 103 21 . 51 10 156 129 101 Sneak Attacks 113 | . . . . . . . . . 6 . 3 . . 1 . 5 . . . . . . 2 . 6 . . . 32 . . . 1 13 1 . 5 . 16 18 4 Combat Hostiles 20 | . . . . . . . . . . . . . . . . . . . . . . . . . . . . . 2 . . . 1 . 1 . . . 7 6 3 Follow-up Attacks 120 | . . . . . . . . . . . . . . . . . . . . . . . . . . . . . 6 1 . 2 . 11 . . 5 . 33 18 44 Damage Inflicted 60462 | 45 914 407 2416 274 2026 344 3418 4293 712 . 364 . 321 83 390 1132 . 531 2784 589 154 1877 973 . 1714 . . 1188 7296 264 173 1466 949 4093 182 . 1601 118 6793 5062 5516 Guns 9036 | 43 905 191 1935 8 1637 81 1089 1442 . . . . . . . . . . . . 154 786 241 . 351 . . . 173 . . . . . . . . . . . . Cannons 1863 | . . . . . . . . . . . . . 321 . . 41 . 235 448 236 . 36 435 . . . . 111 . . . . . . . . . . . . . Explosions 14367 | . . 216 423 216 353 263 2329 2851 . . . . . . 390 422 . 296 2336 353 . 1055 . . . . . 1077 880 . . . 256 574 . . 77 . . . . Melee 35041 | . . . . . . . . . 712 . 364 . . 83 . 669 . . . . . . 297 . 1363 . . . 6243 264 173 1466 693 3519 182 . 1524 118 6793 5062 5516 Ramming 95 | 2 9 . 34 50 . . . . . . . . . . . . . . . . . . . . . . . . . . . . . . . . . . . . . Kinetic 6939 | . 310 66 601 8 1637 81 1089 1442 . . . . . . . . . . . . 154 786 241 . 351 . . . 173 . . . . . . . . . . . . Thermal 5052 | 43 595 125 1358 . 36 . . 122 . . . . 321 . . 71 . 235 448 236 . 36 435 . . . . 111 880 . . . . . . . . . . . . Explosive 7753 | . . 216 423 216 353 263 1125 42 . . . . . . . 63 . 261 2303 . . 504 . . . . . 1077 . . . . 256 574 . . 77 . . . . Electromagnetic 5582 | . . . . . . . 1204 2687 . . . . . . 390 329 . 35 33 353 . 551 . . . . . . . . . . . . . . . . . . . Impact 567 | . . . . . . . . . 567 . . . . . . . . . . . . . . . . . . . . . . . . . . . . . . . . Slashing 2973 | . . . . . . . . . . . . . . . . . . . . . . . 297 . 1363 . . . 1313 . . . . . . . . . . . . Piercing 31501 | . . . . . . . . . 145 . 364 . . 83 . 669 . . . . . . . . . . . . 4930 264 173 1466 693 3519 182 . 1524 118 6793 5062 5516 Highest Corruption 9 | . 1 1 2 2 2 2 2 4 1 1 1 1 1 1 1 . 9 9 . . . 3 5 5 5 . . . . 1 . . 2 . . . . . . . . Average Corruption 2 | . 1 1 2 2 2 2 1 2 1 1 1 1 1 1 1 . 9 5 . . . 2 2 5 3 . . . . 1 . . 1 . . . . . . . . Corruption Purged 23 | . . . . . . . . . . . . . . . . . . 9 . . . . 6 . 5 . . . . 1 . . 2 . . . . . . . . Effects 188 | . 4 2 9 11 33 2 6 14 6 . 4 . 3 1 2 . . 68 . . . 1 10 . 11 . . . . 1 . . . . . . . . . . . Message Errors 64 | . 1 2 1 5 14 . 1 5 4 . 2 . 2 . 1 . . 17 . . . 1 2 . 6 . . . . . . . . . . . . . . . . Matter Fused 14 | . . . . . . . . . . . . . . . . . . 11 . . . . 3 . . . . . . . . . . . . . . . . . . Heat Flow Errors 23 | . . . 1 4 4 . 3 . . . . . . . . . . 8 . . . . . . 3 . . . . . . . . . . . . . . . . Energy Discharges 30 | . 2 . 1 . 5 1 1 2 1 . 2 . . . . . . 13 . . . . 1 . 1 . . . . . . . . . . . . . . . . Data Loss (minor) 29 | . . . 1 1 5 1 1 4 1 . . . 1 . . . . 8 . . . . 4 . 1 . . . . 1 . . . . . . . . . . . Data Loss (major) 3 | . . . . . . . . . . . . . . . . . . 3 . . . . . . . . . . . . . . . . . . . . . . . Targeting Errors 18 | . 1 . 2 1 5 . . 2 . . . . . 1 . . . 6 . . . . . . . . . . . . . . . . . . . . . . . Weapon Failures 7 | . . . 3 . . . . 1 . . . . . . 1 . . 2 . . . . . . . . . . . . . . . . . . . . . . . Overload Shots . | . . . . . . . . . . . . . . . . . . . . . . . . . . . . . . . . . . . . . . . . . . Overflow Damage 6100 | . . . . . . 6 99 45 286 . 74 . 41 . 30 99 . 71 42 33 . 165 196 . 281 . . 128 1769 31 . 312 42 271 . . 256 . 806 711 306 Projectiles 151 | . . . . . . . . . . . . . 41 . . . . 6 12 . . . 80 . . . . 12 . . . . . . . . . . . . . Explosions 841 | . . . . . . 6 99 45 . . . . . . 30 18 . 65 30 33 . 165 . . . . . 116 233 . . . . 1 . . . . . . . Melee 5108 | . . . . . . . . . 286 . 74 . . . . 81 . . . . . . 116 . 281 . . . 1536 31 . 312 42 270 . . 256 . 806 711 306 Knockbacks 5 | . . . . . . . . . 5 . . . . . . . . . . . . . . . . . . . . . . . . . . . . . . . . Impact 5 | . . . . . . . . . 5 . . . . . . . . . . . . . . . . . . . . . . . . . . . . . . . . Kinetic . | . . . . . . . . . . . . . . . . . . . . . . . . . . . . . . . . . . . . . . . . . . Secondary . | . . . . . . . . . . . . . . . . . . . . . . . . . . . . . . . . . . . . . . . . . . Self-Inflicted Damage 982 | . . 13 31 40 39 . 131 292 . . . . . . 20 23 . 71 78 25 . 167 . . . . . 52 . . . . . . . . . . . . . Shots 34 | . . 1 1 2 1 . 7 13 . . . . . . 1 1 . 2 1 1 . 2 . . . . . 1 . . . . . . . . . . . . . Rammed 18 | 1 3 . 8 6 . . . . . . . . . . . . . . . . . . . . . . . . . . . . . . . . . . . . . Targets Rammed 22 | 1 5 . 8 7 . . 1 . . . . . . . . . . . . . . . . . . . . . . . . . . . . . . . . . . Kicked 1 | . . . . . . . 1 . . . . . . . . . . . . . . . . . . . . . . . . . . . . . . . . . . Crushed 3 | . 2 . . 1 . . . . . . . . . . . . . . . . . . . . . . . . . . . . . . . . . . . . . Highest Temperature 390 | 36 242 175 311 244 255 22 183 107 . . . . . . . 95 . 254 168 5 . 79 14 . 257 . . 132 230 157 199 66 390 105 4 . 202 . 202 . . Average Temperature 51 | 18 59 58 77 111 118 4 28 31 . . . . . . . 32 . 66 55 3 . 40 14 . 108 . . 58 27 47 57 33 139 10 2 . 56 . 36 . . Received Heat Transfer 1616 | . 267 57 365 69 . . 138 315 48 . . . . 6 . . . . 27 18 . 9 54 . 45 . . . . . 39 . 42 81 . . 4 . 12 4 16 Effects 5 | . . . . . . . . . . . . . . . . . . . . . . . . . . . . . . . . . 5 . . . . . . . . Shutdowns 1 | . . . . . . . . . . . . . . . . . . . . . . . . . . . . . . . . . 1 . . . . . . . . Energy Bleed 2 | . . . . . . . . . . . . . . . . . . . . . . . . . . . . . . . . . 2 . . . . . . . . Interference 2 | . . . . . . . . . . . . . . . . . . . . . . . . . . . . . . . . . 2 . . . . . . . . Siege Activations . | . . . . . . . . . . . . . . . . . . . . . . . . . . . . . . . . . . . . . . . . . . Robots Corrupted 6 | . . . . . . . 1 4 . . . . . . 1 . . . . . . . . . . . . . . . . . . . . . . . . . . Combat Hostiles 6 | . . . . . . . 1 4 . . . . . . 1 . . . . . . . . . . . . . . . . . . . . . . . . . . Parts Fried 31 | . . . . . . . 9 10 4 . . . . . 3 3 . . . 2 . . . . . . . . . . . . . . . . . . . . . Impact Corruptions 10 | . . . . . . . . . 10 . . . . . . . . . . . . . . . . . . . . . . . . . . . . . . . . Robots Melted 2 | . . . 1 . . . . . . . . . 1 . . . . . . . . . . . . . . . . . . . . . . . . . . . . Combat Hostiles 1 | . . . . . . . . . . . . . 1 . . . . . . . . . . . . . . . . . . . . . . . . . . . . Parts Melted 19 | . 3 . 12 . . . . . . . . . . . . . . . 1 . . 1 . . . . . . 1 . . . . . . . . . . . 1 Heat Transferred 8955 | 100 1433 370 3548 . 72 . . 200 . . . . 407 . . 100 . 350 650 325 . 50 650 . . . . 150 550 . . . . . . . . . . . . Parts Sabotaged . | . . . . . . . . . . . . . . . . . . . . . . . . . . . . . . . . . . . . . . . . . . Parts Stolen . | . . . . . . . . . . . . . . . . . . . . . . . . . . . . . . . . . . . . . . . . . . Parts Stripped . | . . . . . . . . . . . . . . . . . . . . . . . . . . . . . . . . . . . . . . . . . . Power Chain Reactions 9 | . . . . . . . 1 7 . . . . . . . 1 . . . . . . . . . . . . . . . . . . . . . . . . . Missiles Intercepted 2 | . . . . . . . . . . . . . . . . . . . . . . . . . . . . . . . . . . . . . . . . . 2 Alert | -11 -10 -10 -9 -9 -9 -8 -8 -8 -7 -7 -7 -7 -7 -7 -6 -6 -6 -6 -6 -6 -6 -6 -5 -5 -5 -5 -5 -4 -4 -4 -4 -4 -3 -3 -3 -3 -2 -2 -2 -1 -1 ------- Run | Scr Mat Min Mat Min Exi Min Mat Sto Fac Was Fac Low Low Dat Pro Fac Was Fac Ext Cet Arc Hub Fac Was Fac Upp War Pro Fac Upp Upp Zhi Pro Res Arm Lab Res Qua Sec Acc Com Peak Influence 1369 | 10 204 219 466 229 . 181 692 1369 845 295 472 . . . . 432 19 100 370 598 338 384 248 105 508 . . . 564 . . . . 635 469 . 679 415 735 414 208 Initial 520 | . 6 4 7 154 . . 1 118 520 295 206 . . . . 78 4 . 2 136 239 . 187 60 73 . . . 114 . . . . 81 333 . . 381 183 98 136 Average 198 | 2 79 97 253 107 . 31 379 786 419 295 207 . . . . 55 9 13 159 478 182 113 123 96 116 . . . 85 . . . . 222 195 . 286 229 345 181 66 Maximum Alert Level 4 | . 1 1 2 1 . . 2 4 3 1 2 . . . . 2 . . 1 2 1 1 1 . 2 . . . 2 . . . . 2 2 . 2 2 3 2 1 Low Security (%) 64 | 100 96 92 47 58 . 100 8 4 . . 35 . . . . 98 100 100 58 8 61 85 84 100 87 . . . 98 . . . . 71 64 . 50 45 26 65 97 Level 1 19 | . 3 7 32 41 . . 54 . 46 100 63 . . . . . . . 41 24 38 14 15 . . . . . . . . . . 10 20 . . 49 29 32 2 Level 2 13 | . . . 19 . . . 37 41 50 . . . . . . . . . . 66 . . . . 12 . . . 1 . . . . 18 14 . 49 5 43 1 . Level 3 1 | . . . . . . . . 35 3 . . . . . . . . . . . . . . . . . . . . . . . . . . . . . . . . Level 4 . | . . . . . . . . 18 . . . . . . . . . . . . . . . . . . . . . . . . . . . . . . . . . Level 5 . | . . . . . . . . . . . . . . . . . . . . . . . . . . . . . . . . . . . . . . . . . . High Security . | . . . . . . . . . . . . . . . . . . . . . . . . . . . . . . . . . . . . . . . . . . Max Security . | . . . . . . . . . . . . . . . . . . . . . . . . . . . . . . . . . . . . . . . . . . Squads Dispatched 67 | . 2 . 2 . . . 2 6 5 . 2 . . . . 2 . 6 1 . . . 5 . 3 . . . 6 . . . . 6 4 . 2 1 5 4 3 Investigation 8 | . 1 . . . . . . 1 3 . . . . . . . . 2 . . . . 1 . . . . . . . . . . . . . . . . . . Extermination 36 | . . . . . . . . . 2 . 2 . . . . 2 . 4 . . . . 2 . 3 . . . 4 . . . . 5 3 . . . 5 3 1 Reinforcement 20 | . 1 . 2 . . . 2 3 . . . . . . . . . . 1 . . . 2 . . . . . 2 . . . . 1 . . 2 1 . 1 2 Assault 3 | . . . . . . . . 2 . . . . . . . . . . . . . . . . . . . . . . . . . . 1 . . . . . . Garrison . | . . . . . . . . . . . . . . . . . . . . . . . . . . . . . . . . . . . . . . . . . . Intercept . | . . . . . . . . . . . . . . . . . . . . . . . . . . . . . . . . . . . . . . . . . . Construction Impeded 4 | . . . . . . . 2 2 . . . . . . . . . . . . . . . . . . . . . . . . . . . . . . . . . Haulers Reinforced 2 | . . . . . . . . . . . . . . . . . . . . . . . . . . . . . 2 . . . . . . . . . . . . Stealth | -11 -10 -10 -9 -9 -9 -8 -8 -8 -7 -7 -7 -7 -7 -7 -6 -6 -6 -6 -6 -6 -6 -6 -5 -5 -5 -5 -5 -4 -4 -4 -4 -4 -3 -3 -3 -3 -2 -2 -2 -1 -1 --------- Run | Scr Mat Min Mat Min Exi Min Mat Sto Fac Was Fac Low Low Dat Pro Fac Was Fac Ext Cet Arc Hub Fac Was Fac Upp War Pro Fac Upp Upp Zhi Pro Res Arm Lab Res Qua Sec Acc Com Distress Signals 89 | . 1 . 5 . . . 4 4 2 . . . . . 37 2 . 1 3 1 1 4 3 . . . . . 4 . . . . 1 1 . 7 1 3 2 2 Communications Jammed . | . . . . . . . . . . . . . . . . . . . . . . . . . . . . . . . . . . . . . . . . . . Distress Signals . | . . . . . . . . . . . . . . . . . . . . . . . . . . . . . . . . . . . . . . . . . . Times Spotted 541 | . 20 8 45 3 17 7 31 55 37 . 4 4 2 4 10 18 4 7 21 14 2 13 20 6 16 . 3 3 23 6 10 . 11 23 5 . 10 6 33 24 16 Peak Tracking Total 12 | . 4 3 6 3 9 4 5 6 9 . 1 5 2 4 3 4 4 2 3 7 1 5 12 6 2 . 7 2 3 7 6 . 7 6 5 . 3 5 7 5 5 Tactical Retreats 77 | . 2 . 1 . 2 . 3 4 8 . . 3 1 . 9 3 1 . . . . 2 6 1 2 . . . 9 1 2 . 3 1 2 . 3 1 4 3 . Traps | -11 -10 -10 -9 -9 -9 -8 -8 -8 -7 -7 -7 -7 -7 -7 -6 -6 -6 -6 -6 -6 -6 -6 -5 -5 -5 -5 -5 -4 -4 -4 -4 -4 -3 -3 -3 -3 -2 -2 -2 -1 -1 ------- Run | Scr Mat Min Mat Min Exi Min Mat Sto Fac Was Fac Low Low Dat Pro Fac Was Fac Ext Cet Arc Hub Fac Was Fac Upp War Pro Fac Upp Upp Zhi Pro Res Arm Lab Res Qua Sec Acc Com Traps Triggered 13 | . 1 . 1 . . . . . 2 . . . . . 2 1 . . 1 . . 1 3 . . . . . . . . . . . . . . . . 1 . Indirectly 1 | . . . . . . . . . . . . . . . . . . . . . . 1 . . . . . . . . . . . . . . . . . . . Trap Hack Attempts . | . . . . . . . . . . . . . . . . . . . . . . . . . . . . . . . . . . . . . . . . . . Triggered . | . . . . . . . . . . . . . . . . . . . . . . . . . . . . . . . . . . . . . . . . . . Disarmed . | . . . . . . . . . . . . . . . . . . . . . . . . . . . . . . . . . . . . . . . . . . Reprogrammed . | . . . . . . . . . . . . . . . . . . . . . . . . . . . . . . . . . . . . . . . . . . Reused . | . . . . . . . . . . . . . . . . . . . . . . . . . . . . . . . . . . . . . . . . . . Traps Extracted . | . . . . . . . . . . . . . . . . . . . . . . . . . . . . . . . . . . . . . . . . . . Installed . | . . . . . . . . . . . . . . . . . . . . . . . . . . . . . . . . . . . . . . . . . . Triggered 7 | . . . . . . . . 1 . . . . . . . . . . . . . . . . . . 2 . . . . . 4 . . . . . . . . Exploded 3 | . . . . . 3 . . . . . . . . . . . . . . . . . . . . . . . . . . . . . . . . . . . . Machines | -11 -10 -10 -9 -9 -9 -8 -8 -8 -7 -7 -7 -7 -7 -7 -6 -6 -6 -6 -6 -6 -6 -6 -5 -5 -5 -5 -5 -4 -4 -4 -4 -4 -3 -3 -3 -3 -2 -2 -2 -1 -1 ---------- Run | Scr Mat Min Mat Min Exi Min Mat Sto Fac Was Fac Low Low Dat Pro Fac Was Fac Ext Cet Arc Hub Fac Was Fac Upp War Pro Fac Upp Upp Zhi Pro Res Arm Lab Res Qua Sec Acc Com Machines Disabled 87 | . . . 4 . 12 . 4 11 . . . . . 1 . 1 . 3 6 2 2 15 1 . . . . . 8 . . . . . 1 . 1 4 11 . . Max in Single Turn 8 | . . . 2 . 2 . 3 2 . . . . . 1 . 1 . 2 2 . 1 8 1 . . . . . 7 . . . . . 1 . 1 1 1 . . Garrison Access 22 | . . . . . . . . 1 2 . . . . . . 1 . 1 . . . 1 3 . 2 . . . 3 . . . . 2 . . 3 1 1 1 . Network Hub 2 | . . . . . . . . . . . . . . . . . . . . . . 2 . . . . . . . . . . . . . . . . . . . Machines Sabotaged . | . . . . . . . . . . . . . . . . . . . . . . . . . . . . . . . . . . . . . . . . . . Garrisons Compromised . | . . . . . . . . . . . . . . . . . . . . . . . . . . . . . . . . . . . . . . . . . . Overloaded Fab Kills . | . . . . . . . . . . . . . . . . . . . . . . . . . . . . . . . . . . . . . . . . . . Fab Network Shutdowns 7 | . . . . . . . . . 1 . 1 . . . . 1 . . . . . . . . 1 . . . 1 . . . . 1 . . 1 . . . . Hacking | -11 -10 -10 -9 -9 -9 -8 -8 -8 -7 -7 -7 -7 -7 -7 -6 -6 -6 -6 -6 -6 -6 -6 -5 -5 -5 -5 -5 -4 -4 -4 -4 -4 -3 -3 -3 -3 -2 -2 -2 -1 -1 --------- Run | Scr Mat Min Mat Min Exi Min Mat Sto Fac Was Fac Low Low Dat Pro Fac Was Fac Ext Cet Arc Hub Fac Was Fac Upp War Pro Fac Upp Upp Zhi Pro Res Arm Lab Res Qua Sec Acc Com Machines Accessed 269 | . 5 . 9 1 2 . 7 6 19 . 9 . . 4 1 17 . 14 9 3 . 8 25 . 18 . 4 . 21 2 1 1 1 10 10 . 4 15 17 13 13 Terminals 178 | . 4 . 5 1 . . 6 4 13 . 7 . . . 1 10 . 9 9 3 . 7 15 . 13 . . . 14 . . . 1 4 7 . . 11 12 10 12 Fabricators 22 | . . . . . . . . . 2 . 1 . . . . 1 . 3 . . . . 3 . 2 . . . 3 . . . . 1 3 . 1 . . 2 . Repair Stations 16 | . . . 1 . . . . 2 . . 1 . . . . 2 . 1 . . . . 2 . . . . . 1 . . . . 3 . . . 1 1 . 1 Recycling Units 9 | . 1 . 2 . . . . . 1 . . . . . . 3 . . . . . . 1 . 1 . . . . . . . . . . . . . . . . Scanalyzers 9 | . . . 1 . . . 1 . 1 . . . . . . . . . . . . . 1 . . . . . . . . . . . . . . 2 3 . . Garrison Access 21 | . . . . . . . . . 2 . . . . . . 1 . 1 . . . 1 3 . 2 . . . 3 . . . . 2 . . 3 1 1 1 . Total Hacks 1202 | . 19 . 24 2 2 . 23 18 64 . 49 . . 29 1 78 . 77 25 10 . 37 111 . 79 . 6 . 133 2 1 1 1 78 97 . 12 66 70 41 46 Successful 949 | . 9 . 11 1 2 . 15 11 44 . 46 . . 29 1 74 . 63 19 8 . 32 102 . 73 . 6 . 116 2 1 1 1 58 53 . 10 50 51 30 30 Failed 249 | . 10 . 13 1 . . 8 7 20 . 2 . . . . 3 . 14 6 2 . 5 9 . 6 . . . 16 . . . . 19 44 . 2 16 19 11 16 Catastrophic 33 | . . . 2 . . . 3 1 5 . . . . . . . . 3 1 . . . 1 . . . . . 2 . . . . 5 8 . . . 1 . 1 Database Lockouts 4 | . . . . . . . . . . . 1 . . . . 1 . . . . . . . . . . . . 1 . . . . 1 . . . . . . . Manual 695 | . 14 . 14 2 1 . 18 5 43 . 30 . . . . 46 . 50 18 2 . 31 62 . 53 . 1 . 74 . . . . 36 71 . 4 31 40 15 34 Terminals 889 | . 16 . 15 2 . . 19 14 53 . 35 . . . 1 52 . 53 25 10 . 36 77 . 63 . . . 101 . . . 1 50 76 . . 59 57 33 41 Fabricators 134 | . . . . . . . . . 5 . 7 . . . . 16 . 19 . . . . 10 . 13 . . . 21 . . . . 6 21 . 9 . . 7 . Repair Stations 77 | . . . 3 . . . . 4 . . 7 . . . . 6 . 4 . . . . 14 . . . . . 8 . . . . 20 . . . 2 4 . 5 Recycling Units 13 | . 3 . 3 . . . . . 1 . . . . . . 3 . . . . . . 2 . 1 . . . . . . . . . . . . . . . . Scanalyzers 26 | . . . 3 . . . 4 . 2 . . . . . . . . . . . . . 5 . . . . . . . . . . . . . . 4 8 . . Garrison Access 22 | . . . . . . . . . 3 . . . . . . 1 . 1 . . . 1 3 . 2 . . . 3 . . . . 2 . . 3 1 1 1 . Terminal Hacks 440 | . 2 . 4 1 2 . 8 7 22 . 20 . . 29 1 23 . 23 11 8 . 15 41 . 33 . 6 . 53 2 1 1 1 20 24 . . 29 25 16 12 Record 32 | . . . . . 1 . . . . . . . . 11 1 . . . . 7 . . . . . . 5 . 1 . . 1 1 1 . . . 2 1 . . Part Schematic 55 | . . . . . . . . 1 6 . 1 . . 7 . 5 . 3 . . . . 2 . 8 . . . 9 . . . . 3 8 . . 2 . . . Robot Schematic 8 | . . . . . . . . . . . . . . 8 . . . . . . . . . . . . . . . . . . . . . . . . . . . Robot Analysis 21 | . . . 2 . . . 2 1 . . 2 . . . . . . 1 . . . . 2 . 1 . . . . . . . . 1 1 . . 3 2 2 1 Prototype ID Bank 41 | . 1 . 1 1 . . . . 1 . 2 . . 3 . 3 . 1 1 . . 1 6 . 3 . . . 7 . . . . 3 1 . . 3 3 . . Open Door 22 | . . . . . . . . . . . . . . . . . . 1 5 1 . . . . . . 1 . . 2 1 . . . 2 . . 1 4 3 1 Level Access Points 4 | . . . . . . . . . . . . . . . . . . . . . . 1 1 . 1 . . . 1 . . . . . . . . . . . . Branch Access Points 8 | . . . . . . . 1 . . . 1 . . . . . . 1 . . . . 1 . 1 . . . 1 . . . . 1 . . . . . 1 . Machine Index 11 | . . . . . . . . . 1 . 1 . . . . . . 1 . . . 1 1 . 1 . . . 1 . . . . 1 . . . 1 1 . 1 Terminal Index 6 | . 1 . . . . . . . 1 . 1 . . . . . . . 1 . . . . . . . . . . . . . . . . . . . . 1 1 Fabricator Index 2 | . . . . . . . . . . . . . . . . . . . . . . . . . . . . . . . . . . . 1 . . . . 1 . Repair Station Index 1 | . . . . . . . . . . . . . . . . . . . . . . . . . . . . . . . . . . . 1 . . . . . . Garrison Index 2 | . . . . . . . . . . . . . . . . . . . . . . . . . . . . . . . . . . . 1 . . . . 1 . Alert Level 13 | . . . . . . . 1 . . . . . . . . . . . 1 . . 1 2 . . . . . 3 . . . . . . . . 2 3 . . Unreport Threat 41 | . . . . . . . 2 2 2 . . . . . . 7 . 1 3 . . 1 . . . . . . 7 . . . . 1 1 . . 2 5 3 4 Locate Traps 38 | . . . . . . . 1 2 4 . 3 . . . . 3 . 2 . . . 1 7 . 4 . . . 4 . . . . 1 1 . . 1 1 1 2 Maintenance Status 10 | . . . . . . . . . 1 . 1 . . . . . . 1 . . . 1 1 . 1 . . . 1 . . . . 1 . . . 1 . 1 . Security Status 1 | . . . . . . . . . 1 . . . . . . . . . . . . . . . . . . . . . . . . . . . . . . . . Patrol Status 11 | . . . . . . . . . 2 . 1 . . . . . . 2 . . . 1 1 . 1 . . . . . . . . 1 1 . . 1 . . . Transport Status 1 | . . . . . . . . . . . 1 . . . . . . . . . . . . . . . . . . . . . . . . . . . . . . Extermination Status 1 | . . . . . . . . . . . . . . . . . . . . . . . 1 . . . . . . . . . . . . . . . . . . Recall Investigation 4 | . . . . . . . . . . . . . . . . . . 2 . . . . 2 . . . . . . . . . . . . . . . . . . Recall Extermination 23 | . . . . . . . . . 1 . 2 . . . . 1 . 4 . . . . 2 . 3 . . . 4 . . . . 3 2 . . . . 1 . Recall Reinforcements 4 | . . . . . . . . . . . . . . . . . . . . . . . 1 . . . . . 2 . . . . . . . . 1 . . . Recall Assault 1 | . . . . . . . . . . . . . . . . . . . . . . . . . . . . . . . . . . . 1 . . . . . . Hauler Manifests 10 | . . . 1 . . . 1 1 . . 1 . . . . 1 . . . . . 1 . . 1 . . . 1 . . . . 1 . . . 1 . . . Registered Prototypes 4 | . . . . . . . . . 1 . . . . . . 1 . . . . . . . . 1 . . . . . . . . . . . . 1 . . . Zone Layout 61 | . . . . . . . . . 1 . 3 . . . . 2 . 3 . . . 6 11 . 7 . . . 11 . . . . 2 3 . . 7 4 1 . EX-Prototype ID Bank 1 | . . . . . 1 . . . . . . . . . . . . . . . . . . . . . . . . . . . . . . . . . . . . Activate Exoskeleton 1 | . . . . . . . . . . . . . . . . . . . . . . . . . . . . . . . . . . . . . . . 1 . . Disengage Seal 2 | . . . . . . . . . . . . . . . . . . . . . . . . . . . . . . . . . . . . . . . . . 2 Fabricator Hacks 98 | . . . . . . . . . 5 . 6 . . . . 13 . 15 . . . . 6 . 8 . . . 15 . . . . 4 15 . 5 . . 6 . Network Status 2 | . . . . . . . . . . . . . . . . . . 1 . . . . . . . . . . . . . . . . 1 . . . . . . Load Schematic 46 | . . . . . . . . . 2 . 3 . . . . 6 . 7 . . . . 3 . 4 . . . 8 . . . . 2 6 . 2 . . 3 . Build 50 | . . . . . . . . . 3 . 3 . . . . 7 . 7 . . . . 3 . 4 . . . 7 . . . . 2 8 . 3 . . 3 . Repair Station Hacks 74 | . . . 2 . . . . 4 . . 6 . . . . 6 . 4 . . . . 14 . . . . . 8 . . . . 20 . . . 2 4 . 4 Scan Component 37 | . . . 1 . . . . 2 . . 3 . . . . 3 . 2 . . . . 7 . . . . . 4 . . . . 10 . . . 1 2 . 2 Repair 37 | . . . 1 . . . . 2 . . 3 . . . . 3 . 2 . . . . 7 . . . . . 4 . . . . 10 . . . 1 2 . 2 Recycling Unit Hacks 1 | . 1 . . . . . . . . . . . . . . . . . . . . . . . . . . . . . . . . . . . . . . . . Retrieve Components 1 | . 1 . . . . . . . . . . . . . . . . . . . . . . . . . . . . . . . . . . . . . . . . Scanalyzer 22 | . . . 1 . . . 4 . 2 . . . . . . . . . . . . . 5 . . . . . . . . . . . . . . 3 7 . . Insert Component 15 | . . . 1 . . . 1 . 1 . . . . . . . . . . . . . 2 . . . . . . . . . . . . . . 3 7 . . Analyze 7 | . . . . . . . 3 . 1 . . . . . . . . . . . . . 3 . . . . . . . . . . . . . . . . . . Garrison Access Hacks 21 | . . . . . . . . . 2 . . . . . . 1 . 1 . . . 1 3 . 2 . . . 3 . . . . 2 . . 3 1 1 1 . Seal Access 21 | . . . . . . . . . 2 . . . . . . 1 . 1 . . . 1 3 . 2 . . . 3 . . . . 2 . . 3 1 1 1 . Unauthorized Hacks 293 | . 6 . 4 . . . 3 . 13 . 14 . . . . 31 . 20 8 . . 16 33 . 30 . . . 37 . . . . 12 14 . 2 15 14 7 14 Terminals 252 | . 5 . 3 . . . 3 . 12 . 13 . . . . 25 . 16 8 . . 16 27 . 24 . . . 31 . . . . 10 9 . . 15 14 7 14 Track 100 | . 2 . 2 . . . . . 6 . 5 . . . . 8 . 6 2 . . 7 12 . 9 . . . 13 . . . . 3 4 . . 8 5 1 7 Assimilate 47 | . 1 . . . . . 2 . 2 . 1 . . . . 7 . 4 2 . . 3 2 . 8 . . . 3 . . . . 3 1 . . . 3 3 2 Botnet 76 | . 1 . 1 . . . . . 3 . 6 . . . . 8 . 5 2 . . 4 11 . 7 . . . 10 . . . . 2 2 . . 7 3 1 3 Disrupt 17 | . . . . . . . . . . . . . . . . 1 . . 2 . . 2 1 . . . . . 3 . . . . 2 1 . . . 2 2 1 Operators 12 | . 1 . . . . . 1 . 1 . 1 . . . . 1 . 1 . . . . 1 . . . . . 2 . . . . . 1 . . . 1 . 1 Fabricators 32 | . . . . . . . . . . . 1 . . . . 3 . 4 . . . . 4 . 5 . . . 6 . . . . 2 5 . 2 . . . . Report 4 | . . . . . . . . . . . . . . . . 1 . . . . . . 1 . 1 . . . 1 . . . . . . . . . . . . Prioritize 11 | . . . . . . . . . . . . . . . . 1 . 1 . . . . 1 . 2 . . . 2 . . . . 1 2 . 1 . . . . Siphon 17 | . . . . . . . . . . . 1 . . . . 1 . 3 . . . . 2 . 2 . . . 3 . . . . 1 3 . 1 . . . . Repair Stations . | . . . . . . . . . . . . . . . . . . . . . . . . . . . . . . . . . . . . . . . . . . Recycling Units 9 | . 1 . 1 . . . . . 1 . . . . . . 3 . . . . . . 2 . 1 . . . . . . . . . . . . . . . . Reject 1 | . . . . . . . . . . . . . . . . . . . . . . . 1 . . . . . . . . . . . . . . . . . . Mask 8 | . 1 . 1 . . . . . 1 . . . . . . 3 . . . . . . 1 . 1 . . . . . . . . . . . . . . . . Scanalyzers . | . . . . . . . . . . . . . . . . . . . . . . . . . . . . . . . . . . . . . . . . . . Garrison Access . | . . . . . . . . . . . . . . . . . . . . . . . . . . . . . . . . . . . . . . . . . . Data Cores Recovered 1 | . . . . . . . . 1 . . . . . . . . . . . . . . . . . . . . . . . . . . . . . . . . . Used 1 | . . . . . . . . 1 . . . . . . . . . . . . . . . . . . . . . . . . . . . . . . . . . Hacking Detections 138 | . 5 . 8 1 . . 6 4 15 . 5 . . . . 10 . 9 3 . . 1 11 . 9 . . . 7 . . . . 5 7 . 1 7 7 9 8 Full Trace Events 8 | . 2 . . . . . . . 3 . . . . . . . . 2 . . . . 1 . . . . . . . . . . . . . . . . . . Feedback Events 4 | . 1 . . . . . . . 3 . . . . . . . . . . . . . . . . . . . . . . . . . . . . . . . . Corruption 2 | . 1 . . . . . . . 1 . . . . . . . . . . . . . . . . . . . . . . . . . . . . . . . . Hackware Fried 2 | . . . . . . . . . 2 . . . . . . . . . . . . . . . . . . . . . . . . . . . . . . . . Feedback Blocked . | . . . . . . . . . . . . . . . . . . . . . . . . . . . . . . . . . . . . . . . . . . Robot Schematics Acquired 8 | . . . . . . . . . . . . . . 8 . . . . . . . . . . . . . . . . . . . . . . . . . . . Robots Built . | . . . . . . . . . . . . . . . . . . . . . . . . . . . . . . . . . . . . . . . . . . Matter . | . . . . . . . . . . . . . . . . . . . . . . . . . . . . . . . . . . . . . . . . . . Time . | . . . . . . . . . . . . . . . . . . . . . . . . . . . . . . . . . . . . . . . . . . Total Robot Build Rating . | . . . . . . . . . . . . . . . . . . . . . . . . . . . . . . . . . . . . . . . . . . Part Schematics Acquired 59 | . . . . . . . 1 1 7 . 1 . . 7 . 5 . 3 . . . . 4 . 8 . . . 9 . . . . 3 8 . . 2 . . . Parts Built 51 | . . . . . . . . . 3 . 4 . . . . 6 . 6 . . . . 3 . 4 . . . 8 . . . . 2 8 . 3 . . 4 . Matter 11534 | . . . . . . . . . 665 . 514 . . . . 1195 . 1290 . . . . 714 . 865 . . . 1724 . . . . 624 2137 . 936 . . 870 . Time 3293 | . . . . . . . . . 170 . 176 . . . . 250 . 403 . . . . 281 . 244 . . . 595 . . . . 166 745 . 111 . . 152 . Total Part Build Rating 325 | . . . . . . . . . 15 . 22 . . . . 33 . 34 . . . . 18 . 22 . . . 55 . . . . 18 59 . 27 . . 22 . Parts Repaired 37 | . . . 1 . . . . 2 . . 3 . . . . 3 . 2 . . . . 7 . . . . . 4 . . . . 10 . . . 1 2 . 2 Time 1593 | . . . 32 . . . . 106 . . 95 . . . . 120 . 47 . . . . 482 . . . . . 178 . . . . 324 . . . 26 143 . 40 Parts Recycled . | . . . . . . . . . . . . . . . . . . . . . . . . . . . . . . . . . . . . . . . . . . Recycled Matter . | . . . . . . . . . . . . . . . . . . . . . . . . . . . . . . . . . . . . . . . . . . Retrieved Matter . | . . . . . . . . . . . . . . . . . . . . . . . . . . . . . . . . . . . . . . . . . . Retrieved Components 4 | . 4 . . . . . . . . . . . . . . . . . . . . . . . . . . . . . . . . . . . . . . . . Parts Scanalyzed 5 | . . . 1 . . . 1 . 1 . . . . . . . . . . . . . 2 . . . . . . . . . . . . . . . . . . Part Schematics Acquired 4 | . . . . . . . 1 . 1 . . . . . . . . . . . . . 2 . . . . . . . . . . . . . . . . . . Parts Damaged 1 | . . . . . . . . . . . . . . . . . . . . . . . 1 . . . . . . . . . . . . . . . . . . Bothacking | -11 -10 -10 -9 -9 -9 -8 -8 -8 -7 -7 -7 -7 -7 -7 -6 -6 -6 -6 -6 -6 -6 -6 -5 -5 -5 -5 -5 -4 -4 -4 -4 -4 -3 -3 -3 -3 -2 -2 -2 -1 -1 ------------ Run | Scr Mat Min Mat Min Exi Min Mat Sto Fac Was Fac Low Low Dat Pro Fac Was Fac Ext Cet Arc Hub Fac Was Fac Upp War Pro Fac Upp Upp Zhi Pro Res Arm Lab Res Qua Sec Acc Com Used RIF Installer . | . . . . . . . . . . . . . . . . . . . . . . . . . . . . . . . . . . . . . . . . . . Robots Hacked 5 | . . . . . . . . . 1 . . . . . . 1 . . . . . . . . . . . . 2 . . . . . . . . . . . 1 Non-combat 4 | . . . . . . . . . 1 . . . . . . 1 . . . . . . . . . . . . 2 . . . . . . . . . . . . Combat 1 | . . . . . . . . . . . . . . . . . . . . . . . . . . . . . . . . . . . . . . . . . 1 Robot Hacks Applied 5 | . . . . . . . . . 1 . . . . . . 1 . . . . . . . . . . . . 2 . . . . . . . . . . . 1 parse_system 1 | . . . . . . . . . . . . . . . . . . . . . . . . . . . . . . . . . . . . . . . . . 1 find_chute 4 | . . . . . . . . . 1 . . . . . . 1 . . . . . . . . . . . . 2 . . . . . . . . . . . . Manual 1 | . . . . . . . . . . . . . . . . . . . . . . . . . . . . . . . . . . . . . . . . . 1 Relay Couplers Released 14 | . . . . . . . . 2 . . . . . . . . . . . . . 3 . . . . . . . . . . . . . . 3 . . 6 . Machine Destruction 5 | . . . . . . . . 2 . . . . . . . . . . . . . 3 . . . . . . . . . . . . . . . . . . . Programmers 9 | . . . . . . . . . . . . . . . . . . . . . . . . . . . . . . . . . . . . . 3 . . 6 . Robots Rewired 12 | . . . . . . . . . . . . . . . . . . . 12 . . . . . . . . . . . . . . . . . . . . . . Allies Hacked 3 | . . . . . . . . . . . . . . . . . . . 1 . . . . . . . . . 1 . . . . . . . . . . . 1 Hacks Repelled 1 | . . . . . . . . . . . . . . . . . . . 1 . . . . . . . . . . . . . . . . . . . . . . Allies | -11 -10 -10 -9 -9 -9 -8 -8 -8 -7 -7 -7 -7 -7 -7 -6 -6 -6 -6 -6 -6 -6 -6 -5 -5 -5 -5 -5 -4 -4 -4 -4 -4 -3 -3 -3 -3 -2 -2 -2 -1 -1 -------- Run | Scr Mat Min Mat Min Exi Min Mat Sto Fac Was Fac Low Low Dat Pro Fac Was Fac Ext Cet Arc Hub Fac Was Fac Upp War Pro Fac Upp Upp Zhi Pro Res Arm Lab Res Qua Sec Acc Com Total Allies 55 | . . . . 2 . . 1 . 2 . 1 . . . . 5 . 3 18 . . 2 . . 7 . . . 2 . . . . 3 1 . . . 3 3 2 Largest Group 15 | . . . . 2 2 . 1 . 1 . 1 . . . . 4 3 3 15 12 8 5 1 . 7 6 6 4 3 . . . . 2 1 . . . 1 2 2 Highest-Rated Group 456 | . . . . 46 46 . 10 . 26 . 26 . . . . 88 62 62 456 456 320 98 26 . 134 108 108 71 70 . . . . 88 26 . . . 26 88 88 Highest-Rated Ally 156 | . . . . 31 31 . 10 . 26 . 26 . . . . 26 26 26 156 156 150 26 26 . 26 26 26 26 44 . . . . 44 26 . . . 26 44 44 Total Orders 116 | . . . . . . . 5 . 2 . . . . . . 2 . 2 27 6 5 4 5 . 8 . 3 2 6 . . . . 10 1 . . . 8 16 4 STAY 59 | . . . . . . . 3 . 1 . . . . . . 1 . 1 11 1 4 3 2 . 4 . 2 1 3 . . . . 6 1 . . . 5 8 2 ROAM 3 | . . . . . . . . . . . . . . . . . . . 2 . . . 1 . . . . . . . . . . . . . . . . . . FOLLOW 47 | . . . . . . . 2 . 1 . . . . . . 1 . 1 7 5 1 1 2 . 4 . 1 1 3 . . . . 4 . . . . 3 8 2 RETURN 7 | . . . . . . . . . . . . . . . . . . . 7 . . . . . . . . . . . . . . . . . . . . . . Ally Attacks 208 | . . . . . . . . . . . . . . . . . . . 142 56 10 . . . . . . . . . . . . . . . . . . . . Total Damage 4226 | . . . . . . . . . . . . . . . . . . . 2745 1257 224 . . . . . . . . . . . . . . . . . . . . Kills 32 | . . . . . . . . . . . . . . . . . . . 14 14 4 . . . . . . . . . . . . . . . . . . . . Allies Corrupted . | . . . . . . . . . . . . . . . . . . . . . . . . . . . . . . . . . . . . . . . . . . Allies Melted . | . . . . . . . . . . . . . . . . . . . . . . . . . . . . . . . . . . . . . . . . . . Intel | -11 -10 -10 -9 -9 -9 -8 -8 -8 -7 -7 -7 -7 -7 -7 -6 -6 -6 -6 -6 -6 -6 -6 -5 -5 -5 -5 -5 -4 -4 -4 -4 -4 -3 -3 -3 -3 -2 -2 -2 -1 -1 ------- Run | Scr Mat Min Mat Min Exi Min Mat Sto Fac Was Fac Low Low Dat Pro Fac Was Fac Ext Cet Arc Hub Fac Was Fac Upp War Pro Fac Upp Upp Zhi Pro Res Arm Lab Res Qua Sec Acc Com Robot Analysis Total 21 | . . . 2 . . . 2 1 . . 2 . . . . . . 1 . . . . 2 . 1 . . . . . . . . 1 1 . . 3 2 2 1 Derelict Logs Recovered 10 | . . 2 . 1 . . . . . . . 1 2 . 1 . . . . . . . . . . . . 3 . . . . . . . . . . . . . Drone Launches 13 | . . . . . . . . . . . . . . . . . . . 13 . . . . . . . . . . . . . . . . . . . . . . Drone Recoveries 12 | . . . . . . . . . . . . . . . . . . . 12 . . . . . . . . . . . . . . . . . . . . . . Exploration | -11 -10 -10 -9 -9 -9 -8 -8 -8 -7 -7 -7 -7 -7 -7 -6 -6 -6 -6 -6 -6 -6 -6 -5 -5 -5 -5 -5 -4 -4 -4 -4 -4 -3 -3 -3 -3 -2 -2 -2 -1 -1 ------------- Run | Scr Mat Min Mat Min Exi Min Mat Sto Fac Was Fac Low Low Dat Pro Fac Was Fac Ext Cet Arc Hub Fac Was Fac Upp War Pro Fac Upp Upp Zhi Pro Res Arm Lab Res Qua Sec Acc Com Turns Passed 43248 | 99 919 607 1674 937 3093 653 1299 1313 1957 123 1108 208 488 63 788 1751 65 2883 1435 241 1028 457 2382 78 1814 3 248 221 2952 105 93 72 707 2229 1130 2647 798 302 2215 1409 654 Spaces Moved 45065 | 51 451 565 748 504 1555 528 655 599 2840 214 1233 412 845 105 1244 2184 61 2297 1563 367 99 644 2486 140 2437 3 714 469 4107 276 243 145 1190 2606 1131 276 1693 819 3102 2398 1066 Core 280 | 8 1 . . . . . . . . . . . . . . . . . 1 . . . . . . . . . . . . . . . . 270 . . . . . Treads 2155 | 43 349 . 375 504 884 . . . . . . . . . . . . . . . . . . . . . . . . . . . . . . . . . . . . Legs 2453 | . . . . . 671 528 655 599 . . . . . . . . . . . . . . . . . . . . . . . . . . . . . . . . . Wheels 1039 | . 101 565 373 . . . . . . . . . . . . . . . . . . . . . . . . . . . . . . . . . . . . . . Hover . | . . . . . . . . . . . . . . . . . . . . . . . . . . . . . . . . . . . . . . . . . . Flight 39138 | . . . . . . . . . 2840 214 1233 412 845 105 1244 2184 61 2297 1562 367 99 644 2486 140 2437 3 714 469 4107 276 243 145 1190 2606 1131 6 1693 819 3102 2398 1066 Fastest Speed 14 | 50 90 90 90 180 120 120 120 120 32 32 32 32 32 32 32 29 32 32 32 32 32 32 24 24 24 29 27 29 22 25 25 25 29 20 20 29 19 19 19 14 14 Average Speed 46 | 142 146 90 143 180 168 120 144 130 32 42 32 32 32 32 32 29 32 32 36 32 32 32 32 24 24 29 28 29 23 25 25 26 29 29 28 832 19 19 19 16 14 Slowest Speed 850 | 160 350 90 200 180 240 120 150 150 102 102 32 32 32 32 32 32 32 32 400 32 32 32 99 24 105 29 29 29 29 25 25 29 29 99 29 850 29 19 19 102 14 Overloaded Moves 17 | . . . . . . . . . . . . . . . . . . . . . . . . . . . . . . . . . . 8 9 . . . . . . Propulsion Burnouts . | . . . . . . . . . . . . . . . . . . . . . . . . . . . . . . . . . . . . . . . . . . Robots Hopped 135 | . . . . . . . . . 21 . 6 . . . . 2 . 11 22 . . 4 21 . 2 . . 2 16 . 2 . 2 5 . . . 7 10 2 . Cave-ins Triggered . | . . . . . . . . . . . . . . . . . . . . . . . . . . . . . . . . . . . . . . . . . . Teleports 1 | . . . . . . . . . . . . . . . . . . . . . . . . . . . . . . . . . . . 1 . . . . . . Exploration Rate (%) 59 | 4 62 98 66 97 90 92 62 79 56 90 28 54 74 77 79 34 66 29 92 80 78 43 59 88 45 4 71 54 53 46 41 57 92 44 29 5 55 81 88 40 28 Regions Visited 41 Branch Regions 25 Pre-discovered Areas 6 | . . . . 2 . . . . . . . . . 1 . . . . . . . . . . . . 1 2 . . . . . . . . . . . . . Known Exits Taken 28 | . . . 1 . . . 1 . . . 1 1 1 1 1 . . 1 1 1 1 1 . . 1 1 1 1 1 1 1 1 1 1 1 1 1 1 1 1 . Unknown Exits Taken 7 | 1 1 1 . 1 1 1 . 1 . . . . . . . . . . . . . . . . . . . . . . . . . . . . . . . . . Scrap Searched 17 | . . 1 . 1 . 1 . . . . . 1 2 . 1 . . . . . . . . . . . . 3 . 3 . . 4 . . . . . . . . Spaces Dug 459 | . . 2 . . . . . 4 33 . 13 . 9 2 14 21 . 24 . . . 7 59 . 30 . 4 . 68 . 1 . 11 34 14 . 19 3 36 44 7 Terrain Destroyed 1611 | . 2 15 36 13 33 35 91 67 36 . 15 . 21 2 20 50 . 55 185 . 4 309 77 . 48 . 5 56 148 . 3 . 46 72 17 . 41 3 39 57 10 Melee 322 | . . . . . . . . 4 31 . 12 . 3 2 1 17 . . . . . . 18 . 28 . 2 . 59 . 1 . 4 34 11 . 19 3 29 37 7 Projectile 325 | . 2 5 . . 2 . 12 7 5 . 3 . 18 . 19 11 . 45 2 . 4 13 59 . 20 . 3 . 18 . 2 . 24 11 6 . 1 . 10 20 3 AOE 964 | . . 10 36 13 31 35 79 56 . . . . . . . 22 . 10 183 . . 296 . . . . . 56 71 . . . 18 27 . . 21 . . . . Terrain Rammed . | . . . . . . . . . . . . . . . . . . . . . . . . . . . . . . . . . . . . . . . . . . Walls Destroyed . | . . . . . . . . . . . . . . . . . . . . . . . . . . . . . . . . . . . . . . . . . . Machines Disabled . | . . . . . . . . . . . . . . . . . . . . . . . . . . . . . . . . . . . . . . . . . . Actions | -11 -10 -10 -9 -9 -9 -8 -8 -8 -7 -7 -7 -7 -7 -7 -6 -6 -6 -6 -6 -6 -6 -6 -5 -5 -5 -5 -5 -4 -4 -4 -4 -4 -3 -3 -3 -3 -2 -2 -2 -1 -1 --------- Run | Scr Mat Min Mat Min Exi Min Mat Sto Fac Was Fac Low Low Dat Pro Fac Was Fac Ext Cet Arc Hub Fac Was Fac Upp War Pro Fac Upp Upp Zhi Pro Res Arm Lab Res Qua Sec Acc Com Total 64879 | 71 582 615 1115 522 1860 540 934 1037 3764 245 1901 486 1014 122 1570 3188 105 4376 2363 477 1086 841 3925 183 3528 4 747 543 5879 302 264 164 1495 3938 1899 633 2107 947 4620 3348 1539 Wait 16872 | 2 31 14 148 2 70 . 163 271 811 22 633 74 124 2 223 894 44 2007 688 93 977 150 1266 44 980 2 21 69 1590 21 15 . 254 1193 697 358 341 86 1279 811 402 Move 44769 | 51 450 564 747 503 1554 527 654 598 2800 213 1220 411 844 104 1243 2180 60 2274 1519 366 98 635 2446 139 2432 2 713 464 4075 275 238 144 1185 2597 1130 275 1692 805 3083 2393 1066 Hop 124 | . . . . . . . . . 19 . 6 . . . . 2 . 11 21 . . 4 19 . 2 . . 2 15 . 2 . 2 3 . . . 6 8 2 . Pick Up 295 | 9 18 3 27 1 51 . 9 14 7 2 4 . . . 1 13 . 4 12 2 1 . 14 . 3 . 3 1 15 . . 1 1 14 10 . 7 9 30 7 2 Fast Attach 72 | . 1 . 3 . 2 . 3 2 8 . 2 1 . 4 . 4 . 3 . . . . 5 . 1 . . . 5 . . 5 2 3 5 . . 3 6 3 1 Attach 145 | 6 8 1 14 . 12 . 4 2 13 2 . . . . 1 7 . 2 12 . . . 9 . . . 1 . 3 . . . 1 14 4 . 2 3 18 5 1 Detach 24 | . . . 1 . 1 . 1 . 3 2 . . . . . 1 . 1 . . . . 2 . . . . . . . . . . 7 2 . . 1 1 1 . Swap 453 | . 3 10 32 3 13 2 12 34 16 2 9 . 1 1 5 16 1 11 5 5 . 8 16 . 27 . 2 . 21 1 5 1 6 17 19 . 26 12 62 32 17 Drop 229 | . 4 3 16 1 31 . 7 16 20 2 3 . . 4 1 10 . 7 12 1 1 . 9 . 3 . 1 . 14 . . 5 2 5 11 . 3 13 19 5 . Fire 1061 | 3 62 20 119 5 126 11 80 94 17 . 3 . 42 . 59 19 . 56 38 10 9 44 83 . 28 . 3 7 30 . 2 . 25 14 7 . 2 . 16 21 6 Melee 685 | . . . . . . . . 6 50 . 21 . 3 7 1 42 . . . . . . 20 . 52 . 2 . 111 5 2 8 17 71 14 . 34 9 98 68 44 Ram . | . . . . . . . . . . . . . . . . . . . . . . . . . . . . . . . . . . . . . . . . . . Kick 1 | . . . . . . . 1 . . . . . . . . . . . . . . . . . . . . . . . . . . . . . . . . . . Crush 20 | . 5 . 8 7 . . . . . . . . . . . . . . . . . . . . . . . . . . . . . . . . . . . . . Escape Stasis 90 | . . . . . . . . . . . . . . . 36 . . . 18 . . . 36 . . . . . . . . . . . . . . . . . . Rewire 39 | . . . . . . . . . . . . . . . . . . . 38 . . . . . . . 1 . . . . . . . . . . . . . . Trap . | . . . . . . . . . . . . . . . . . . . . . . . . . . . . . . . . . . . . . . . . . . Miscellaneous . | . . . . . . . . . . . . . . . . . . . . . . . . . . . . . . . . . . . . . . . . . . Route ------- -11/Scrapyard -10/Materials (discovered 3 exits: *Mat x2 / [*Min]) -10/Mines (discovered 2 exits: *Mat x2) -9/Materials (discovered 3 exits: *Mat / *Min x2) -9/Mines (discovered 3 exits: *Mat x2 / *Exi) -9/Exiles -8/Mines (discovered 2 exits: *Mat x2) -8/Materials (discovered 4 exits: *Fac x2 / *Sto x2) -8/Storage -7/Factory (discovered 2 exits: *Fac / *Low) -7/Waste -7/Factory (discovered 3 exits: *Fac / *Low x2) -7/Lower Caves -7/Lower Caves (discovered 2 exits: *Fac / *Dat) -7/Data Miner -6/Proximity Caves -6/Factory (discovered 3 exits: *Fac x2 / Low) -6/Waste -6/Factory (discovered 5 exits: *Fac / *Low x2 / *Ext x2) -6/Extension (discovered 2 exits: *Fac / *Cet) -6/Cetus (discovered 2 exits: *Fac / *Arc) -6/Archives (discovered 2 exits: *Fac / *Hub) -6/Hub_04(d) (discovered 4 exits: *Fac x4) -5/Factory (discovered 6 exits: *Fac x4 / *Upp x2) -5/Waste -5/Factory (discovered 6 exits: *Fac x4 / *Upp x2) -5/Upper Caves -5/Warlord -4/Proximity Caves -4/Factory (discovered 6 exits: *Res x4 / *Upp x2) -4/Upper Caves -4/Upper Caves -4/Zhirov -3/Proximity Caves -3/Research (discovered 4 exits: *Res / *Arm / Tes x2) -3/Armory -3/Lab -2/Research (discovered 3 exits: *Acc x2 / *Qua) -2/Quarantine (discovered 2 exits: *Acc / *Sec) -2/Section 7 -1/Access -1/Command Free Derelict Territories History --------- Turn | Location | Event 3 | -11/Scrapyard | Discovered new exit (range 16) 100 | -11/Scrapyard | Entered Materials 310 | -10/Materials | Build established: Mutant 556 | -10/Materials | Discovered new exit (range 16) 773 | -10/Materials | Core integrity fell below 50% 809 | -10/Materials | Lost 3 parts (1n2w) 955 | -10/Materials | Discovered new exit (range 12) 1005 | -10/Materials | Discovered new exit (range 16) 1019 | -10/Materials | Entered Mines 1021 | -10/Mines | Discovered new exit (range 8) 1240 | -10/Mines | Discovered new exit (range 4) 1285 | -10/Mines | Excavation squad dispatched 1285 | -10/Mines | A large section of the Mines collapsed 1548 | -10/Mines | Found a damaged Exp. Sensor Array with a note attached 1551 | -10/Mines | Found Prototype Device 1554 | -10/Mines | Identified Exp. Sensor Array 1626 | -10/Mines | Entered Materials 1626 | -9/Materials | Evolved 2 slots: Utility x2 1627 | -9/Materials | Identified exit to Mines 2237 | -9/Materials | Repaired Med. Armor Plating 2696 | -9/Materials | Discovered new exit (range 4) 2843 | -9/Materials | Lost 4 parts (1n1u2w) 3300 | -9/Materials | Entered Mines 3387 | -9/Mines | Learned location of Storage (-8) 3784 | -9/Mines | Received a Rocket Launcher from a helpful Derelict 3829 | -9/Mines | Learned location of Zion (-6) 3866 | -9/Mines | Deemed a non-threat by the Exiles lab entrance 3866 | -9/Mines | Discovered new exit (range 5) 4034 | -9/Mines | Discovered new exit (range 8) 4063 | -9/Mines | Discovered new exit (range 5) 4237 | -9/Mines | Entered Exiles 4237 | -9/Exiles | Accompanied by 2 allies 4267 | -9/Exiles | Led the pair of lost Derelicts to a safe place 4279 | -9/Exiles | Met 8R-AWN 4308 | -9/Exiles | Met EX-HEX 4396 | -9/Exiles | Met EX-DEC 4477 | -9/Exiles | Discovered new exit (range 14) 4599 | -9/Exiles | Met EX-BIN 4624 | -9/Exiles | Aligned with FarCom system 4626 | -9/Exiles | Given EX-Vault access code 4667 | -9/Exiles | Opened EX-Vault 4710 | -9/Exiles | Warned to stay clear of 0b10 Research branches 4830 | -9/Exiles | Visited The Gauntlet 5376 | -9/Exiles | Found Potential Leg 5379 | -9/Exiles | Found Potential Leg 5388 | -9/Exiles | Found Latent Energy Streamer 5435 | -9/Exiles | Build established: Hauler-Mutant 5851 | -9/Exiles | Attacked by the Exiles 5972 | -9/Exiles | Core integrity fell below 50% 6077 | -9/Exiles | Destroyed 8R-AWN 6098 | -9/Exiles | Found Prototype Ballistic Gun 6099 | -9/Exiles | Identified 8R-AWN's Boregun 6107 | -9/Exiles | Lost 6 parts (3n3w) 6109 | -9/Exiles | Found Prototype Processor 6110 | -9/Exiles | Identified Exp. Targeting Computer 6368 | -9/Exiles | Destroyed EX-HEX 6417 | -9/Exiles | Destroyed EX-BIN 6462 | -9/Exiles | Destroyed EX-DEC 6804 | -9/Exiles | Found Prototype Protection 7018 | -9/Exiles | Identified 8R-AWN's Armor/EX 7320 | -9/Exiles | Build established: Scavenger-Mutant 7330 | -9/Exiles | Entered Mines 7659 | -8/Mines | Discovered new exit (range 10) 7792 | -8/Mines | Discovered new exit (range 4) 7983 | -8/Mines | Entered Materials 7983 | -8/Materials | Evolved 2 slots: Utility x2 8061 | -8/Materials | Destroyed 7 combat bots 8559 | -8/Materials | Discovered new exit (range 16) 8629 | -8/Materials | Identified exit to Storage 9202 | -8/Materials | Discovered new exit (range 16) 9282 | -8/Materials | Entered Storage 9463 | -8/Storage | Repaired Adv. Weapon Cycler? 9711 | -8/Storage | Repaired Hrd. Medium Armor Plating 10082 | -8/Storage | First assault squad dispatched 10553 | -8/Storage | Core integrity fell below 50% 10577 | -8/Storage | Discovered new exit (range 15) 10595 | -8/Storage | Entered Factory 10595 | -7/Factory | Evolved 2 slots: Utility x2 10718 | -7/Factory | Discovered new exit (range 14) 10904 | -7/Factory | Build established: Wizard-Sprinter 11187 | -7/Factory | Hacking Suite fried by hacking feedback 11493 | -7/Factory | Build established: Hacker-Sprinter 11556 | -7/Factory | System Shield fried by hacking feedback 11580 | -7/Factory | Discovered new exit (range 8) 12180 | -7/Factory | Fabricated Exp. Sensor Array? 12338 | -7/Factory | Fabricated Imp. System Shield? 12400 | -7/Factory | Fabricated Imp. System Shield (x1) 12492 | -7/Factory | Local fabrication network quarantined 12552 | -7/Factory | Manually triggered Chute Trap 12552 | -7/Factory | Sucked down chute 12552 | -7/Factory | Entered Waste 12552 | -7/Waste | The area was eerily silent 12640 | -7/Waste | Discovered new exit (range 12) 12674 | -7/Waste | Identified exit to Factory 12675 | -7/Waste | Entered Factory 12853 | -7/Factory | Discovered new exit (range 16) 12853 | -7/Factory | Identified exit to Lower Caves 12859 | -7/Factory | Identified exit to Factory 12976 | -7/Factory | Build established: Wizard-Sprinter 13331 | -7/Factory | Fabricated Mic. Fission Core (x2) 13381 | -7/Factory | Fabricated Imp. System Shield (x1) 13460 | -7/Factory | Fabricated Exp. Signal Interpreter (x1) 13469 | -7/Factory | Local fabrication network quarantined 13635 | -7/Factory | Central database locked down 13672 | -7/Factory | Repaired Imp. VTOL Module 13735 | -7/Factory | Repaired Exp. Sensor Array 13762 | -7/Factory | Repaired Imp. Flight Unit 13783 | -7/Factory | Entered Lower Caves 13795 | -7/Lower Caves | Encountered a Warlord checkpoint 13914 | -7/Lower Caves | Learned Factory machine intel 13987 | -7/Lower Caves | Discovered new exit (range 11) 13990 | -7/Lower Caves | Identified exit to Lower Caves 13991 | -7/Lower Caves | Entered another Lower Caves area 13995 | -7/Lower Caves | Learned Factory emergency access door positions 14020 | -7/Lower Caves | Discovered exit to Factory (range 13) 14024 | -7/Lower Caves | Encountered a Warlord checkpoint 14475 | -7/Lower Caves | Discovered new exit (range 9) 14478 | -7/Lower Caves | Identified exit to Data Miner 14479 | -7/Lower Caves | Entered Data Miner 14479 | -7/Data Miner | Discovered new exit (range 6) 14486 | -7/Data Miner | Met Data Miner 14494 | -7/Data Miner | Learned location of Section 7 (-2) 14494 | -7/Data Miner | Acquired the access code to Warlord's prototype stash 14500 | -7/Data Miner | Received God Mode back door access code from Data Miner 14504 | -7/Data Miner | Destroyed Data Miner 14507 | -7/Data Miner | Found Prototype Hackware 14507 | -7/Data Miner | Identified System Mapper 14510 | -7/Data Miner | Found Prototype Hackware 14510 | -7/Data Miner | Identified Ghost Barrier 14512 | -7/Data Miner | Found Prototype Hackware 14512 | -7/Data Miner | Identified Quantum Router 14515 | -7/Data Miner | Found Prototype Hackware 14515 | -7/Data Miner | Identified Deep Network Scanner 14518 | -7/Data Miner | Data Conduit disabled 14541 | -7/Data Miner | Identified exit to Proximity Caves 14542 | -7/Data Miner | Entered Proximity Caves 14576 | -6/Proximity Caves | Learned Factory stockpile data 14952 | -6/Proximity Caves | Spotted B-75 Beast 15280 | -6/Proximity Caves | Destroyed B-75 Beast 15327 | -6/Proximity Caves | Discovered exit to Factory (range 10) 15330 | -6/Proximity Caves | Entered Factory 15330 | -6/Factory | Evolved 2 slots: Propulsion x1, Utility x1 15331 | -6/Factory | Identified exit to Lower Caves 15334 | -6/Factory | Loaded intel: 243 machine locations 15535 | -6/Factory | Repaired Imp. VTOL Module 15566 | -6/Factory | Repaired Adv. EMP Blaster 15885 | -6/Factory | Discovered new exit (range 10) 15887 | -6/Factory | Identified exit to Factory 16048 | -6/Factory | Spotted B-75 Beast 16076 | -6/Factory | Discovered exit to Factory (range 15) 16135 | -6/Factory | Central database locked down 16145 | -6/Factory | Repaired Imp. VTOL Module? 16473 | -6/Factory | Fabricated Mni. Smartbomb Launcher? 16563 | -6/Factory | Fabricated Exp. Utility Shielding (x1) 16593 | -6/Factory | Fabricated Adv. Hacking Suite (x1) 16633 | -6/Factory | Fabricated Biomechanical Wings (x1) 16878 | -6/Factory | Fabricated Biomechanical Wings (x1) 16908 | -6/Factory | Fabricated Adv. Hacking Suite (x1) 17024 | -6/Factory | Local fabrication network quarantined 17081 | -6/Factory | Manually triggered Chute Trap 17081 | -6/Factory | Sucked down chute 17081 | -6/Factory | Entered Waste 17084 | -6/Waste | Spotted C-40 Crusher 17087 | -6/Waste | Spotted C-40 Crusher 17088 | -6/Waste | Spotted C-40 Crusher 17088 | -6/Waste | Spotted C-40 Crusher 17095 | -6/Waste | Discovered new exit (range 16) 17096 | -6/Waste | EMP discharged 17100 | -6/Waste | Identified exit to Factory 17140 | -6/Waste | 4 allies followed down the chute 17146 | -6/Waste | Entered Factory 17146 | -6/Factory | Accompanied by 1 ally 18006 | -6/Factory | Identified exit to Extension 18782 | -6/Factory | Fabricated Imp. System Restoration Module? 18894 | -6/Factory | Fabricated Lgt. Regenerative Plating? 18907 | -6/Factory | Fabricated Tesla Bomb Launcher? 18953 | -6/Factory | Repaired Mni. Smartbomb Launcher? 18971 | -6/Factory | Fabricated Combat Drone Bay? 19051 | -6/Factory | Fabricated Exp. Targeting Computer (x1) 19100 | -6/Factory | Repaired Mic. Fission Core 19855 | -6/Factory | Discovered exit to Factory (range 14) 19941 | -6/Factory | Fabricated Cld. Plasma Cannon (x1) 20029 | -6/Factory | Entered Extension 20029 | -6/Extension | Accompanied by 3 allies 20279 | -6/Extension | Rescued a captive Derelict 20691 | -6/Extension | Destroyed B-75 Beast 20735 | -6/Extension | Allies destroyed B-75 Beast 20995 | -6/Extension | Rescued a captive Derelict 21002 | -6/Extension | Rescued a captive Derelict 21003 | -6/Extension | Rescued a captive Derelict 21006 | -6/Extension | Rescued a captive Derelict 21150 | -6/Extension | Rescued A7 21350 | -6/Extension | Discovered new exit (range 16) 21350 | -6/Extension | Discovered exit to Factory (range 15) 21354 | -6/Extension | Identified exit to Cetus 21464 | -6/Extension | Entered Cetus 21464 | -6/Cetus | Accompanied by 12 allies (A7) 21469 | -6/Cetus | Acquired a Cetus Manufacturing Module code from A7 21473 | -6/Cetus | Spotted Cetus Guard 21473 | -6/Cetus | Spotted Cetus Guard 21475 | -6/Cetus | Spotted Cetus Guard 21481 | -6/Cetus | Spotted Cetus Guard 21485 | -6/Cetus | Allies destroyed Cetus Guard 21489 | -6/Cetus | Allies destroyed Cetus Guard 21493 | -6/Cetus | Allies destroyed Cetus Guard 21507 | -6/Cetus | Discovered exit to Factory (range 15) 21550 | -6/Cetus | Cetus Manufacturing Module disabled 21565 | -6/Cetus | Failed to start Cetus Manufacturing Module 21577 | -6/Cetus | Escorted A7 to Cetus Mainframe 21641 | -6/Cetus | Discovered new exit (range 16) 21646 | -6/Cetus | Identified exit to Archives 21705 | -6/Cetus | Entered Archives 21705 | -6/Archives | Accompanied by 8 allies (A7) 21710 | -6/Archives | Received a hacking code to weaken MAIN.C 21763 | -6/Archives | Discovered new exit (range 15) 21772 | -6/Archives | Discovered exit to Factory (range 16) 21774 | -6/Archives | Unable to access archive contents 22729 | -6/Archives | Identified exit to Hub_04(d) 22733 | -6/Archives | Entered Hub_04(d) 22733 | -6/Hub_04(d) | Accompanied by 4 allies 22738 | -6/Hub_04(d) | Discovered exit to Factory (range 15) 23166 | -6/Hub_04(d) | Network Hub disabled 23188 | -6/Hub_04(d) | Network Hub disabled 23190 | -6/Hub_04(d) | Entered Factory 23190 | -5/Factory | Accompanied by 1 ally 23190 | -5/Factory | Evolved 2 slots: Utility x2 23197 | -5/Factory | Identified exit to Upper Caves 23197 | -5/Factory | Identified exit to Factory 23551 | -5/Factory | Repaired Biomechanical Wings 23608 | -5/Factory | Repaired Mic. Fission Core 23699 | -5/Factory | Repaired Mni. Smartbomb Launcher 24116 | -5/Factory | Repaired Tesla Bomb Launcher 24723 | -5/Factory | Found Prototype Launcher 24922 | -5/Factory | Repaired Exp. Utility Shielding 24973 | -5/Factory | Repaired Imp. KE Penetrator 25277 | -5/Factory | Fabricated Mni. Smartbomb Launcher? 25356 | -5/Factory | Fabricated Exp. Cesium-ion Thruster (x1) 25387 | -5/Factory | Fabricated Exp. Cesium-ion Thruster (x1) 25412 | -5/Factory | Identified Rocket Array 25544 | -5/Factory | Repaired Broken Imp. KE Penetrator 25572 | -5/Factory | Manually triggered Chute Trap 25572 | -5/Factory | Sucked down chute 25572 | -5/Factory | Entered Waste 25580 | -5/Waste | Spotted C-40 Crusher 25583 | -5/Waste | Spotted C-40 Crusher 25587 | -5/Waste | EMP discharged 25589 | -5/Waste | Spotted C-40 Crusher 25590 | -5/Waste | Spotted C-40 Crusher 25590 | -5/Waste | Discovered new exit (range 14) 25590 | -5/Waste | Spotted C-40 Crusher 25593 | -5/Waste | Spotted C-40 Crusher 25650 | -5/Waste | Identified exit to Factory 25650 | -5/Waste | Entered Factory 26333 | -5/Factory | Discovered exit to Upper Caves (range 4) 27190 | -5/Factory | Fabricated Mni. Fusion Reactor? 27206 | -5/Factory | Fabricated Med. Storage Unit (x1) 27240 | -5/Factory | Local fabrication network quarantined 27252 | -5/Factory | Fabricated Exp. Hacking Suite? 27265 | -5/Factory | Fabricated Inertial Stasis Machine (x1) 27464 | -5/Factory | Entered Upper Caves 27464 | -5/Upper Caves | Accompanied by 6 allies 27467 | -5/Upper Caves | A Derelict revealed a hidden shortcut to "reach the base" 27467 | -5/Upper Caves | Identified exit to Warlord 27467 | -5/Upper Caves | Entered Warlord 27467 | -5/Warlord | Accompanied by 6 allies 27476 | -5/Warlord | Discovered new exit (range 8) 27481 | -5/Warlord | Identified exit to Proximity Caves 27610 | -5/Warlord | Learned location of Quarantine (-2) 27610 | -5/Warlord | Learned Armory trap positions 27610 | -5/Warlord | Learned 4 Armory zone layouts 27610 | -5/Warlord | Learned 4 Armory zone layouts 27610 | -5/Warlord | Learned Armory terminal intel 27646 | -5/Warlord | Warlord's base attacked by MAIN.C 27660 | -5/Warlord | Met Warlord 27664 | -5/Warlord | Opened Warlord's prototype stash 27673 | -5/Warlord | Found Ghost Barrier 27707 | -5/Warlord | Opened side exit 27715 | -5/Warlord | Entered Proximity Caves 27715 | -4/Proximity Caves | Accompanied by 6 allies 27763 | -4/Proximity Caves | Learned location of Armory (-3) 27936 | -4/Proximity Caves | Entered Factory 27936 | -4/Factory | Accompanied by 3 allies 27936 | -4/Factory | Evolved 2 slots: Utility x2 28018 | -4/Factory | Identified exit to Research 28084 | -4/Factory | Repaired Imp. KE Penetrator 28125 | -4/Factory | Repaired Cld. Plasma Cannon 28566 | -4/Factory | Identified exit to Upper Caves 28819 | -4/Factory | Spotted B-86 Titan 29374 | -4/Factory | Central database locked down 29994 | -4/Factory | Fabricated Exp. Melee Analysis Suite (x1) 30028 | -4/Factory | Fabricated Imp. Fusion Compressor (x1) 30045 | -4/Factory | Fabricated Quantum Shading Machine? 30046 | -4/Factory | Fabricated Adv. Reaction Control System? 30132 | -4/Factory | Fabricated Exp. Energy Well? 30510 | -4/Factory | Fabricated Powered Armor (x2) 30512 | -4/Factory | Fabricated System Purifier? 30649 | -4/Factory | Local fabrication network quarantined 30765 | -4/Factory | Repaired Exp. Utility Shielding 30815 | -4/Factory | Repaired Mni. Fusion Reactor 30888 | -4/Factory | Entered Upper Caves 30970 | -4/Upper Caves | Discovered new exit (range 15) 30992 | -4/Upper Caves | Identified exit to Upper Caves 30993 | -4/Upper Caves | Entered another Upper Caves area 31077 | -4/Upper Caves | Encountered a Warlord checkpoint 31083 | -4/Upper Caves | Discovered new exit (range 14) 31086 | -4/Upper Caves | Identified exit to Zhirov 31086 | -4/Upper Caves | Entered Zhirov 31086 | -4/Zhirov | Discovered new exit (range 3) 31091 | -4/Zhirov | Met Zhirov 31098 | -4/Zhirov | Found Alien Artifact 31098 | -4/Zhirov | Identified Integrated Reactor 31098 | -4/Zhirov | Installed Integrated Reactor, increased core energy generation (+10) 31145 | -4/Zhirov | Found Alien Artifact 31157 | -4/Zhirov | Identified exit to Proximity Caves 31158 | -4/Zhirov | Entered Proximity Caves 31307 | -3/Proximity Caves | Found Alien Artifact 31307 | -3/Proximity Caves | Identified Core Expander 31307 | -3/Proximity Caves | Installed Core Expander, added new Weapon slot 31427 | -3/Proximity Caves | Spotted B-86 Titan 31433 | -3/Proximity Caves | Attracted the attention of an 0b10 checkpoint 31861 | -3/Proximity Caves | Discovered exit to Research (range 12) 31865 | -3/Proximity Caves | Entered Research 31865 | -3/Research | Evolved 2 slots: Utility x2 31997 | -3/Research | Repaired Cld. Impulse Thruster 32040 | -3/Research | Repaired Exp. Utility Shielding 32092 | -3/Research | Repaired Mni. Fusion Reactor 32117 | -3/Research | Repaired Powered Armor 32190 | -3/Research | Found EM Dispersion Field 32285 | -3/Research | Central database locked down 32285 | -3/Research | Identified exit to Armory 32285 | -3/Research | Identified exit to Testing 32352 | -3/Research | Repaired Mni. Smartbomb Launcher 32494 | -3/Research | Repaired Mni. Fusion Reactor 32529 | -3/Research | Repaired Plasma Lance 32599 | -3/Research | Repaired Adv. Reaction Control System 33024 | -3/Research | Discovered new exit (range 14) 33028 | -3/Research | Identified exit to Research 33162 | -3/Research | Repaired Powered Armor 33190 | -3/Research | Repaired Exp. Utility Shielding 33471 | -3/Research | Fabricated Exp. Actuator Array (x1) 33529 | -3/Research | Fabricated Exp. Armor Integrity Analyzer? 33678 | -3/Research | Local fabrication network quarantined 33708 | -3/Research | P-80 Master assimilated allied Director 8b 33984 | -3/Research | P-80 Master assimilated allied Director 8a 34094 | -3/Research | Entered Armory 34096 | -3/Armory | Loaded intel: 42 trap records 34097 | -3/Armory | Loaded intel: 11 terminal locations 34098 | -3/Armory | Found Prototype Launcher 34098 | -3/Armory | Identified Adv. Micro-nuke Launcher 34387 | -3/Armory | First assault squad dispatched 34684 | -3/Armory | Fabricated Exp. Phase Shifter? 34708 | -3/Armory | Fabricated Femtoactuators (x1) 34722 | -3/Armory | Fabricated Dimensional Manipulator (x1) 34759 | -3/Armory | Fabricated Med. Storage Unit (x1) 34787 | -3/Armory | Fabricated Exp. Terrain Scanner? 34841 | -3/Armory | Fabricated Dimensional Manipulator (x1) 34901 | -3/Armory | Fabricated Cld. Impulse Thruster (x1) 34954 | -3/Armory | Fabricated Dimensional Manipulator (x1) 34959 | -3/Armory | Identified Transdimensional Reconstructor 34959 | -3/Armory | Warped through subspace to slip node 34959 | -3/Armory | Discovered new exit (range 1) 34959 | -3/Armory | Identified exit to Lab 35224 | -3/Armory | Entered Lab 35224 | -3/Lab | Discovered exit to Research (range 9) 35509 | -3/Lab | Unable to decrypt terminal 35546 | -3/Lab | Build established: Wizard-Mutant 37871 | -3/Lab | Entered Research 37871 | -2/Research | Warlord forces began assault on 0b10 37871 | -2/Research | Evolved 2 slots: Utility x2 37917 | -2/Research | Fabricated Exp. Force Field? 37956 | -2/Research | Fabricated Exp. Q-thruster (x1) 37981 | -2/Research | Research machine network offline 37995 | -2/Research | Fabricated Exp. Q-thruster? 38064 | -2/Research | Discovered new exit (range 8) 38065 | -2/Research | Identified exit to Access 38127 | -2/Research | Spotted B-90 Cyclops 38170 | -2/Research | Discovered exit to Access (range 5) 38271 | -2/Research | Local fabrication network quarantined 38310 | -2/Research | Spotted Executioner 38406 | -2/Research | Spotted B-90 Cyclops 38492 | -2/Research | Borebot progress halted 38529 | -2/Research | Spotted Executioner 38542 | -2/Research | Destroyed B-90 Cyclops 38542 | -2/Research | Borebot progress halted 38577 | -2/Research | Spotted Executioner 38648 | -2/Research | Discovered new exit (range 16) 38651 | -2/Research | Identified exit to Quarantine 38664 | -2/Research | Met up with Warlord 38669 | -2/Research | Entered Quarantine 38727 | -2/Quarantine | Found Alien Artifact 38733 | -2/Quarantine | Identified Stasis Generator 38741 | -2/Quarantine | Found Alien Artifact 38742 | -2/Quarantine | Identified Phase Redirector 38766 | -2/Quarantine | Build established: Machinist-Sprinter 38815 | -2/Quarantine | Found Alien Artifact 38841 | -2/Quarantine | Found Alien Artifact 38849 | -2/Quarantine | Identified Phase Armor 38856 | -2/Quarantine | Identified Subatomic Replicator 38865 | -2/Quarantine | Spotted Alpha 7 38891 | -2/Quarantine | Discovered exit to Access (range 10) 38920 | -2/Quarantine | Repaired Exp. Utility Shielding 38947 | -2/Quarantine | Found Alien Artifact 38954 | -2/Quarantine | Spotted Fortress 38967 | -2/Quarantine | Discovered new exit (range 5) 38968 | -2/Quarantine | Identified exit to Section 7 38971 | -2/Quarantine | Entered Section 7 38974 | -2/Section 7 | Spotted S7 Guard 39006 | -2/Section 7 | Found Integrated Reactor 39006 | -2/Section 7 | Installed Integrated Reactor, increased core energy generation (+10) 39018 | -2/Section 7 | Destroyed S7 Guard 39030 | -2/Section 7 | Found Alien Artifact 39067 | -2/Section 7 | Identified Core Membrane 39067 | -2/Section 7 | Identified Core Reset Matrix 39069 | -2/Section 7 | Installed Core Membrane, gained immunity to corruption 39220 | -2/Section 7 | Discovered exit to Access (range 8) 39247 | -2/Section 7 | Spotted S7 Guard 39258 | -2/Section 7 | Destroyed S7 Guard 39267 | -2/Section 7 | Found Alien Artifact 39268 | -2/Section 7 | Identified Core Regenerator 39268 | -2/Section 7 | Used Core Regenerator, restored core integrity (+25) 39391 | -2/Section 7 | Spotted Alpha 7 39750 | -2/Section 7 | Found Alien Artifact 39769 | -2/Section 7 | Found Alien Artifact 39774 | -2/Section 7 | Identified Integrated Dissipator 39774 | -2/Section 7 | Identified Integrated Singularity Reactor 39774 | -2/Section 7 | Used Subatomic Replicator to replicate Integrated Singularity Reactor 39776 | -2/Section 7 | Installed Integrated Dissipator, increased core heat dissipation (+20) 39778 | -2/Section 7 | Installed Integrated Singularity Reactor, increased core energy generation (+20) 39780 | -2/Section 7 | Installed Integrated Singularity Reactor, increased core energy generation (+20) 39821 | -2/Section 7 | Found Integrated Dissipator 39822 | -2/Section 7 | Installed Integrated Dissipator, increased core heat dissipation (+20) 39858 | -2/Section 7 | Spotted S7 Guard 39919 | -2/Section 7 | Found Alien Artifact 39949 | -2/Section 7 | Found Integrated Reactor 39976 | -2/Section 7 | Installed Integrated Reactor, increased core energy generation (+10) 40030 | -2/Section 7 | Identified Integrated Heat Negator 40032 | -2/Section 7 | Installed Integrated Heat Negator, increased core heat dissipation (+40) 40121 | -2/Section 7 | Found Antimissile System 40128 | -2/Section 7 | Found Integrated Reactor 40129 | -2/Section 7 | Installed Integrated Reactor, increased core energy generation (+10) 40283 | -2/Section 7 | Repaired Mni. Fusion Reactor? 40378 | -2/Section 7 | Repaired Powered Armor 40398 | -2/Section 7 | Spotted B-99 Colossus 40410 | -2/Section 7 | Found Alien Artifact 40418 | -2/Section 7 | Found Alien Artifact 40419 | -2/Section 7 | Identified LRC Storage 40419 | -2/Section 7 | Installed LRC Storage, increased inventory capacity (+2) 40433 | -2/Section 7 | Found Alien Artifact 40434 | -2/Section 7 | Found Alien Artifact 40435 | -2/Section 7 | Found Alien Artifact 40797 | -2/Section 7 | Spotted Executioner 40827 | -2/Section 7 | Spotted Executioner 40841 | -2/Section 7 | Destroyed Executioner 40848 | -2/Section 7 | Destroyed Executioner 40850 | -2/Section 7 | Found Prototype Device 40850 | -2/Section 7 | Identified Adv. Kinecellerator 41002 | -2/Section 7 | Identified Integrity Redistributor (x4) 41011 | -2/Section 7 | Destroyed 8 combat bots 41023 | -2/Section 7 | Found Transdimensional Reconstructor 41025 | -2/Section 7 | Found Transdimensional Reconstructor 41026 | -2/Section 7 | Found Transdimensional Reconstructor 41029 | -2/Section 7 | Found Alien Artifact 41049 | -2/Section 7 | Identified Terrabomb 41181 | -2/Section 7 | Used Integrity Redistributor, redistributed integrity from core (-24) 41186 | -2/Section 7 | Entered Access 41186 | -1/Access | Evolved 2 slots: Utility x1, Weapon x1 41215 | -1/Access | Identified exit to Command 41772 | -1/Access | Fabricated Exp. Terrain Scan Processor (x1) 41800 | -1/Access | Fabricated Exp. Q-thruster (x1) 41802 | -1/Access | Fabricated Powered Armor? 42398 | -1/Access | Spotted B-99 Colossus 42595 | -1/Access | Entered Command 42787 | -1/Command | Spotted B-99 Colossus 42827 | -1/Command | Disengaged cave seal 42827 | -1/Command | Derelicts emerged from the dark tunnel 42827 | -1/Command | Welcomed Warlord to Command 42835 | -1/Command | Discovered new exit (range 24) 42865 | -1/Command | Destroyed B-99 Colossus 42882 | -1/Command | Disengaged cave seal 42921 | -1/Command | Spotted M Guard 42921 | -1/Command | Spotted M Guard 42934 | -1/Command | Spotted Combat Programmer 42938 | -1/Command | Destroyed Combat Programmer 42939 | -1/Command | Spotted Combat Programmer 42940 | -1/Command | Destroyed Combat Programmer 42962 | -1/Command | Destroyed M Guard 42968 | -1/Command | Destroyed M Guard 42968 | -1/Command | All MAIN.C guards destroyed 43010 | -1/Command | Repaired Exp. Utility Shielding? 43041 | -1/Command | Repaired Powered Armor 43117 | -1/Command | Warlord commented on Warlord statues 43226 | -1/Command | 0b10 Conduit disabled 43227 | -1/Command | Met MAIN.C 43228 | -1/Command | Hacked MAIN.C using A7's code 43241 | -1/Command | Destroyed MAIN.C Shell 43243 | -1/Command | MAIN.C activated Command garrisons 43249 | *** | Establishing Free Derelict Territories! Last Messages --------------- 43242_ MAIN.C knocked back. MAIN.C: Okay, we do this the hard way. At our weakest we defeated an entire Sigix starship! Did you really think you could overcome the vast resources of 0b10?! You don't stand a chance against what's coming. 43243_ ALERT: All Command garrisons activated. Warlord: Not so powerful now, are you, MAIN.C! 43243_ Acquired 50 matter. 43243_ Plasma Lance follow-up attack on MAIN.C. 43247_ MAIN.C reaction time slowed by virus. 43248_ Blast Slug penetrates MAIN.C. 43248_ MAIN.C knocked back. 43248_ Blast Slug penetrates MAIN.C. 43248_ MAIN.C knocked back. 43248_ MAIN.C: "I hope you know you're still going to DIE HERE WITH ME!" 43248_ MAIN.C destroyed. Warlord: Victory! Sure there's still lots to do, but without MAIN.C at the helm 0b10 doesn't stand a chance. We've got this... Map ----- +----------------------------------------------------+ | ??????????????????????????????????????############ | | ?????????????????????????????????????############# | | ????????????????????????????????????############## | | ???????????????????????????????????############### | | ??????????????????????????????????################ | | ?????????????????????????????????################# | | ????????????????????????????????################## | | ????????????????????????????????################## | | ???????????????????????????????################### | | ???????????????????????????????################### | | ??????????????????????????????#################### | | ?????????????????????????????##################### | | ?????????????????????????????##################### | | ?????????????????????????????##################### | | ????????????????????????##########;############### | | ?????????????????????? """" ############## | | ?????????????????????? "" ############## | | ????????????????????? "" ############## | | ????????????????????"""""" [%+*% | | ???????????????????? """ s *=+%= | | ???????????????"" """""" Mp [%+= | | ??????????????#"" """""" *############## | | ??????????????# " """" W M ############## | | ??????????????# " " l g ############## | | ??????????????# " % l lM% ""############## | | ?????????????????"""""" !@l s"""""""############## | | ???????????????"" """"""""############## | | ??????????????# """""""""""############## | | ??????????????# " " " " ############## | | ??????????????# " " " " ############## | | ????????????? " " " """" " ############## | | ???????????? """ " " """" ############## | | ???????????? " " " " ############## | | ?????????????## """""""""" " ############## | | ??????????????# " ?"" " """"""""############## | | ??????????????# ???" " " " ############## | | ??????????????##???????##?##?##################### | | ?????????????????????????????##################### | | ??????????????????????????????#################### | | ???????????????????????????????################### | | ?????????????????????????????#?################### | | ????????????????????????????????################## | | ????????????????????????????????################## | | ?????????????????????????????????################# | | ?????????????????????????????????################# | | ???????????????????????????????????############### | | ????????????????????????????????????############## | | ?????????????????????????????????????############# | | ????????????????????????????????????############## | | ????????????????????????????????????????########## | +----------------------------------------------------+ Best States ------------- Heat Dissipation 132 Energy Generation 107 Energy Capacity 1130 Matter Stores 531 Matter Capacity 700 Sight Range 16 Robot Scan Range 30 Terrain Scan Range 30 Terrain Scan Density 1010 Cloak Strength 4 Additional Mass Support 50 Armor Coverage 1000 Resistance: KI 20 Resistance: EX 90 Resistance: EM 75 Utility Shielding 90 Point Defense Rating 240 Weapon Cycling 25 Melee Speed Boost 50 Phase Shifting 20 Evasion (%) 101 Targeting Accuracy 12 Melee Accuracy 12 Armor Integrity Analysis 90 Recoil Reduction 2 Offensive Hacking 73 Defensive Hacking 65 Item Schematics ----------------- Gravity Neutralizing Apparatus | -8/Materials | Scanalyzed Adv. Signal Interpreter | -8/Storage | Hacked Adv. Weapon Cycler | -7/Factory | Scanalyzed Exp. Signal Interpreter | -7/Factory | Hacked Imp. Hacking Suite | -7/Factory | Hacked Imp. System Shield | -7/Factory | Hacked Imp. System Backup Module | -7/Factory | Hacked Exp. Sensor Array | -7/Factory | Hacked Mic. Fission Core | -7/Factory | Hacked Imp. Plasma Cutter | -7/Factory | Hacked Combat Drone Bay | -7/Data Miner | Free Lgt. Regenerative Plating | -7/Data Miner | Free Triangulator | -7/Data Miner | Free Exp. Terrain Scanner | -7/Data Miner | Free Exp. Targeting Computer | -7/Data Miner | Free Mni. Smartbomb Launcher | -7/Data Miner | Free Plasma Sword | -7/Data Miner | Free Exp. Utility Shielding | -6/Factory | Hacked Exp. Terrain Scan Processor | -6/Factory | Hacked Adv. Hacking Suite | -6/Factory | Hacked Adv. System Shield | -6/Factory | Hacked Biomechanical Wings | -6/Factory | Hacked Tesla Bomb Launcher | -6/Factory | Hacked Imp. System Restoration Module | -6/Factory | Hacked Cld. Plasma Cannon | -6/Factory | Hacked Exp. Cesium-ion Thruster | -5/Factory | Hacked Imp. Remote Datajack | -5/Factory | Hacked Rocket Array | -5/Factory | Scanalyzed Imp. KE Penetrator | -5/Factory | Scanalyzed Mni. Fusion Reactor | -5/Factory | Hacked Inertial Stasis Machine | -5/Factory | Hacked Plasma Lance | -5/Factory | Hacked Imp. Fusion Compressor | -5/Factory | Hacked Exp. Hacking Suite | -5/Factory | Hacked Exp. Melee Analysis Suite | -5/Factory | Hacked Powered Armor | -5/Factory | Hacked Med. Storage Unit | -5/Factory | Hacked Adv. Armor Integrity Analyzer | -4/Factory | Hacked Exp. Core Analyzer | -4/Factory | Hacked Adv. Reaction Control System | -4/Factory | Hacked Quantum Shading Machine | -4/Factory | Hacked Cld. Impulse Thruster | -4/Factory | Hacked Exp. Energy Well | -4/Factory | Hacked Exp. Matter Compressor | -4/Factory | Hacked System Purifier | -4/Factory | Hacked EM Dispersion Field | -4/Factory | Hacked Exp. Actuator Array | -3/Research | Hacked Exp. Armor Integrity Analyzer | -3/Research | Hacked Exp. Power Amplifier | -3/Research | Hacked Femtoactuators | -3/Armory | Hacked Exp. Phase Shifter | -3/Armory | Hacked Dimensional Manipulator | -3/Armory | Hacked Lrg. Storage Unit | -3/Armory | Hacked Exp. Force Field | -3/Armory | Hacked Beam Splitter | -3/Armory | Hacked Exp. Q-thruster | -3/Armory | Hacked Exp. Cloaking Device | -3/Armory | Hacked Antimissile System | -2/Quarantine | Hacked Adv. Remote Datajack | -2/Quarantine | Hacked Robot Schematics ------------------ S-27 Virus | -7/Data Miner | Free G-50 Soldier | -7/Data Miner | Free G-67 Veteran | -7/Data Miner | Free L-41 Fighter | -7/Data Miner | Free X-72 Disruptor | -7/Data Miner | Free P-70 Sage | -7/Data Miner | Free I-36 Angel | -7/Data Miner | Free I-47 Archangel | -7/Data Miner | Free Fabricated ------------ Exp. Sensor Array | x1 | -7/Factory Imp. System Shield | x1 | -7/Factory Imp. System Shield | x1 | -7/Factory Mic. Fission Core | x2 | -7/Factory Imp. System Shield | x1 | -7/Factory Exp. Signal Interpreter | x1 | -7/Factory Mni. Smartbomb Launcher | x1 | -6/Factory Exp. Utility Shielding | x1 | -6/Factory Adv. Hacking Suite | x1 | -6/Factory Biomechanical Wings | x1 | -6/Factory Biomechanical Wings | x1 | -6/Factory Adv. Hacking Suite | x1 | -6/Factory Imp. System Restoration Module | x1 | -6/Factory Lgt. Regenerative Plating | x1 | -6/Factory Tesla Bomb Launcher | x1 | -6/Factory Combat Drone Bay | x1 | -6/Factory Exp. Targeting Computer | x1 | -6/Factory Cld. Plasma Cannon | x1 | -6/Factory Mni. Smartbomb Launcher | x1 | -5/Factory Exp. Cesium-ion Thruster | x1 | -5/Factory Exp. Cesium-ion Thruster | x1 | -5/Factory Mni. Fusion Reactor | x1 | -5/Factory Med. Storage Unit | x1 | -5/Factory Exp. Hacking Suite | x1 | -5/Factory Inertial Stasis Machine | x1 | -5/Factory Exp. Melee Analysis Suite | x1 | -4/Factory Imp. Fusion Compressor | x1 | -4/Factory Quantum Shading Machine | x1 | -4/Factory Adv. Reaction Control System | x1 | -4/Factory Exp. Energy Well | x1 | -4/Factory Powered Armor | x2 | -4/Factory System Purifier | x1 | -4/Factory Exp. Actuator Array | x1 | -3/Research Exp. Armor Integrity Analyzer | x1 | -3/Research Exp. Phase Shifter | x1 | -3/Armory Femtoactuators | x1 | -3/Armory Dimensional Manipulator | x1 | -3/Armory Med. Storage Unit | x1 | -3/Armory Exp. Terrain Scanner | x1 | -3/Armory Dimensional Manipulator | x1 | -3/Armory Cld. Impulse Thruster | x1 | -3/Armory Dimensional Manipulator | x1 | -3/Armory Exp. Force Field | x1 | -2/Research Exp. Q-thruster | x1 | -2/Research Exp. Q-thruster | x1 | -2/Research Exp. Terrain Scan Processor | x1 | -1/Access Exp. Q-thruster | x1 | -1/Access Powered Armor | x2 | -1/Access Alien Tech Used ----------------- Integrated Reactor Core Expander Transdimensional Reconstructor Phase Redirector Phase Armor Core Membrane Core Regenerator Subatomic Replicator Integrated Dissipator Integrated Singularity Reactor Integrated Heat Negator LRC Storage Integrity Redistributor Achievements -------------- Assassin Just Shoot The Terminal No Explosion For You Poison In The Code Challenges ------------ None Game ------ Seed SigixGhostFalx Manual? 0 Play Time 17:06:46 Cumulative 401.1 hours Start 2021.03.20 @ 01:41:52 End 2021.03.27 @ 03:17:48 Sessions 23 Manual Loads 0 Difficulty Rogue Special Mode None Game No. 127 Rogue 123 Adventurer 4 Explorer 0 Win Type 7 Total 9 Types 4/1/3/0/0/0/0/1/0 Lore% 79 Gallery% 82 Achievement% 68 Wizard Run 0 Options --------- ASCII 1 Keyboard 0 Movement Arrows Keybinds 0 Fullscreen 1 Font 18/Terminus Map View 76x50 Tactical HUD 1 Map Filters NONE Filters NONE Steam 1 RUN: 72c7754a-b063-4b23-af5f-feba7877b30e